{"text_format":"1","workbook":"xlsx","n_sheets":3,"sheets":["Budget","Lookup","EchelleTraitement"],"not_rendered":{"charts":0,"images":0,"macros":1,"external_links":0,"defined_names":2,"comments":0,"pivot_tables":0},"unopened":[],"bounds":{"document_bytes":16777216,"sheet_cells":100000,"rows_first":2000,"rows_last":500,"rows_between":2000,"halvings":0,"cell_chars":16384,"cell_head_chars":4096},"cells_cut":0,"cells_raw":0,"read":"whole","date_system":"1900"}

{"sheet":"Budget","index":0,"n_rows":106,"n_cols":17,"rows_kept":106,"cut":false,"hidden":false,"merged":[[59,1,59,4],[73,1,73,4],[74,1,74,4],[47,1,47,4],[48,1,48,4],[49,1,49,4],[50,1,50,4],[51,1,51,4],[52,1,52,4],[69,1,69,4],[70,1,70,4],[71,1,71,4],[72,1,72,4],[56,1,56,4],[57,1,57,4],[65,0,65,6],[0,0,0,14],[2,0,2,14],[11,3,11,14],[44,3,44,7],[20,3,20,7],[21,3,21,7],[33,3,33,7],[105,2,109,2],[105,0,109,1],[53,3,53,7],[3,1,3,7],[22,3,22,7],[31,3,31,7],[32,3,32,7],[42,3,42,7],[43,3,43,7],[100,6,100,7],[60,1,60,4],[61,1,61,4],[89,3,89,5],[75,3,75,7],[62,3,62,7],[58,1,58,4]]}
["Budget prévisionnel"]
[]
[]
["Nom du projet"]
[]
["Structure"]
["Entité"]
[]
["Date de début du projet"]
["Date de fin du projet"]
[]
["Nombre de tranches"]
[]
["Responsable (s) du projet, charges d'encadrement"]
["Nom du/des responsable(s)","Fonction","Classe","Annuité","Salaire mensuel","Unité durée","Durée","Taux d'activité","Coûts en CHF\nTranche 1","Coûts en CHF\nTranche 2","Coûts en CHF\nTranche 3","Coûts en CHF\nTranche 4","Coûts en CHF\nTranche 5","Coûts en CHF\nTranche 6","Coût Total\nCHF"]
[null,null,{"$f":"IF($B16=\"\",\"\",_xlfn.XLOOKUP($B16,Lookup!$J:$J,Lookup!$K:$K))","v":""},{"$f":"IF($B16=\"\",\"\",_xlfn.XLOOKUP($B16,Lookup!$J:$J,Lookup!$L:$L))","v":""},{"$f":"IF($B16=\"\",\"\",_xlfn.XLOOKUP($C16&$D16,EchelleTraitement!$A:$A,EchelleTraitement!$D:$D)/12)","v":""},{"$f":"IF($B16=\"\",\"\",\"Mois\")","v":""},null,null,null,null,null,null,null,null,{"$f":"IF($E16=\"\",\"\",$E16*IF($F16=\"Mois\",$G16,$G16/(21*8))*$H16)","v":""},{"$f":"IFERROR(IF(OR($B$12=\"\",$B$12=1),\"\",IF($B16<>\"\",IF(ROUND(O16,0)=ROUND(SUM($I16:$N16),0),\"\",\"Veuillez renseigner correctement les montants des tranches\"),\"\")),\"\")","v":""}]
[null,null,{"$f":"IF($B17=\"\",\"\",_xlfn.XLOOKUP($B17,Lookup!$J:$J,Lookup!$K:$K))","v":""},{"$f":"IF($B17=\"\",\"\",_xlfn.XLOOKUP($B17,Lookup!$J:$J,Lookup!$L:$L))","v":""},{"$f":"IF($B17=\"\",\"\",_xlfn.XLOOKUP($C17&$D17,EchelleTraitement!$A:$A,EchelleTraitement!$D:$D)/12)","v":""},"",null,null,null,null,null,null,null,null,{"$f":"IF($E17=\"\",\"\",$E17*IF($F17=\"Mois\",$G17,$G17/(21*8))*$H17)","v":""},{"$f":"IFERROR(IF(OR($B$12=\"\",$B$12=1),\"\",IF($B17<>\"\",IF(ROUND(O17,0)=ROUND(SUM($I17:$N17),0),\"\",\"Veuillez renseigner correctement les montants des tranches\"),\"\")),\"\")","v":""}]
[null,null,{"$f":"IF($B18=\"\",\"\",_xlfn.XLOOKUP($B18,Lookup!$J:$J,Lookup!$K:$K))","v":""},{"$f":"IF($B18=\"\",\"\",_xlfn.XLOOKUP($B18,Lookup!$J:$J,Lookup!$L:$L))","v":""},{"$f":"IF($B18=\"\",\"\",_xlfn.XLOOKUP($C18&$D18,EchelleTraitement!$A:$A,EchelleTraitement!$D:$D)/12)","v":""},"",null,null,null,null,null,null,null,null,{"$f":"IF($E18=\"\",\"\",$E18*IF($F18=\"Mois\",$G18,$G18/(21*8))*$H18)","v":""},""]
[null,null,{"$f":"IF($B19=\"\",\"\",_xlfn.XLOOKUP($B19,Lookup!$J:$J,Lookup!$K:$K))","v":""},{"$f":"IF($B19=\"\",\"\",_xlfn.XLOOKUP($B19,Lookup!$J:$J,Lookup!$L:$L))","v":""},{"$f":"IF($B19=\"\",\"\",_xlfn.XLOOKUP($C19&$D19,EchelleTraitement!$A:$A,EchelleTraitement!$D:$D)/12)","v":""},"",null,null,null,null,null,null,null,null,{"$f":"IF($E19=\"\",\"\",$E19*IF($F19=\"Mois\",$G19,$G19/(21*8))*$H19)","v":""},""]
[null,null,{"$f":"IF($B20=\"\",\"\",_xlfn.XLOOKUP($B20,Lookup!$J:$J,Lookup!$K:$K))","v":""},{"$f":"IF($B20=\"\",\"\",_xlfn.XLOOKUP($B20,Lookup!$J:$J,Lookup!$L:$L))","v":""},{"$f":"IF($B20=\"\",\"\",_xlfn.XLOOKUP($C20&$D20,EchelleTraitement!$A:$A,EchelleTraitement!$D:$D)/12)","v":""},"",null,null,null,null,null,null,null,null,{"$f":"IF($E20=\"\",\"\",$E20*IF($F20=\"Mois\",$G20,$G20/(21*8))*$H20)","v":""},""]
[null,null,null,"Charges de personnel d'encadrement",null,null,null,null,{"$f":"SUM(I16:I20)","v":0},0,0,0,0,0,0]
[null,null,null,"Cotisations patronales (23%)",null,null,null,null,{"$f":"I21*0.23","v":0},0,0,0,0,0,{"$f":"O21*0.23","v":0}]
[null,null,null,"Charges de personnel d'encadrement (sous-total)",null,null,null,null,{"$f":"SUM(I21:I22)","v":0},{"$f":"SUM(J21:J22)","v":0},0,0,0,0,0]
[]
["Charges de personnel PENS"]
["Nom / Rôle","Fonction","Classe","Annuité","Salaire mensuel","Unité durée","Durée","Taux d'activité",{"$f":"I$15","v":"Coûts en CHF\nTranche 1"},"Coûts en CHF\nTranche 2","Coûts en CHF\nTranche 3","Coûts en CHF\nTranche 4","Coûts en CHF\nTranche 5","Coûts en CHF\nTranche 6","Coût Total\nCHF"]
[null,null,{"$f":"IF($B27=\"\",\"\",_xlfn.XLOOKUP($B27,Lookup!$P:$P,Lookup!$Q:$Q))","v":""},{"$f":"IF($B27=\"\",\"\",_xlfn.XLOOKUP($B27,Lookup!$P:$P,Lookup!$R:$R))","v":""},{"$f":"IF($B27=\"\",\"\",_xlfn.XLOOKUP($C27&$D27,EchelleTraitement!$A:$A,EchelleTraitement!$D:$D)/12)","v":""},{"$f":"IF($B27=\"\",\"\",\"Mois\")","v":""},null,null,null,null,null,null,null,null,{"$f":"IF($E27=\"\",\"\",$E27*IF($F27=\"Mois\",$G27,$G27/(21*8))*$H27)","v":""},{"$f":"IFERROR(IF(OR($B$12=\"\",$B$12=1),\"\",IF($B27<>\"\",IF(ROUND(O27,0)=ROUND(SUM($I27:$N27),0),\"\",\"Veuillez renseigner correctement les montants des tranches\"),\"\")),\"\")","v":""}]
[null,null,{"$f":"IF($B28=\"\",\"\",_xlfn.XLOOKUP($B28,Lookup!$P:$P,Lookup!$Q:$Q))","v":""},{"$f":"IF($B28=\"\",\"\",_xlfn.XLOOKUP($B28,Lookup!$P:$P,Lookup!$R:$R))","v":""},{"$f":"IF($B28=\"\",\"\",_xlfn.XLOOKUP($C28&$D28,EchelleTraitement!$A:$A,EchelleTraitement!$D:$D)/12)","v":""},"",null,null,null,null,null,null,null,null,{"$f":"IF($E28=\"\",\"\",$E28*IF($F28=\"Mois\",$G28,$G28/(21*8))*$H28)","v":""},""]
[null,null,{"$f":"IF($B29=\"\",\"\",_xlfn.XLOOKUP($B29,Lookup!$P:$P,Lookup!$Q:$Q))","v":""},{"$f":"IF($B29=\"\",\"\",_xlfn.XLOOKUP($B29,Lookup!$P:$P,Lookup!$R:$R))","v":""},{"$f":"IF($B29=\"\",\"\",_xlfn.XLOOKUP($C29&$D29,EchelleTraitement!$A:$A,EchelleTraitement!$D:$D)/12)","v":""},"",null,null,null,null,null,null,null,null,{"$f":"IF($E29=\"\",\"\",$E29*IF($F29=\"Mois\",$G29,$G29/(21*8))*$H29)","v":""},""]
[null,null,{"$f":"IF($B30=\"\",\"\",_xlfn.XLOOKUP($B30,Lookup!$P:$P,Lookup!$Q:$Q))","v":""},{"$f":"IF($B30=\"\",\"\",_xlfn.XLOOKUP($B30,Lookup!$P:$P,Lookup!$R:$R))","v":""},{"$f":"IF($B30=\"\",\"\",_xlfn.XLOOKUP($C30&$D30,EchelleTraitement!$A:$A,EchelleTraitement!$D:$D)/12)","v":""},"",null,null,null,null,null,null,null,null,{"$f":"IF($E30=\"\",\"\",$E30*IF($F30=\"Mois\",$G30,$G30/(21*8))*$H30)","v":""},""]
[null,null,{"$f":"IF($B31=\"\",\"\",_xlfn.XLOOKUP($B31,Lookup!$P:$P,Lookup!$Q:$Q))","v":""},{"$f":"IF($B31=\"\",\"\",_xlfn.XLOOKUP($B31,Lookup!$P:$P,Lookup!$R:$R))","v":""},{"$f":"IF($B31=\"\",\"\",_xlfn.XLOOKUP($C31&$D31,EchelleTraitement!$A:$A,EchelleTraitement!$D:$D)/12)","v":""},"",null,null,null,null,null,null,null,null,{"$f":"IF($E31=\"\",\"\",$E31*IF($F31=\"Mois\",$G31,$G31/(21*8))*$H31)","v":""},""]
[null,null,null,"Charges de personnel PENS",null,null,null,null,{"$f":"SUM(I27:I31)","v":0},0,0,0,0,0,0]
[null,null,null,"Cotisations patronales (23%)",null,null,null,null,{"$f":"I32*0.23","v":0},0,0,0,0,0,0]
[null,null,null,"Charges de personnel PENS (sous-total)",null,null,null,null,{"$f":"SUM(I32:I33)","v":0},0,0,0,0,0,0]
[]
["Charges de personnel PAT"]
["Nom / Rôle","Fonction","Classe","Annuité","Salaire mensuel","Unité durée","Durée","Taux d'activité",{"$f":"I$15","v":"Coûts en CHF\nTranche 1"},"Coûts en CHF\nTranche 2","Coûts en CHF\nTranche 3","Coûts en CHF\nTranche 4","Coûts en CHF\nTranche 5","Coûts en CHF\nTranche 6","Coût Total\nCHF"]
[null,null,{"$f":"IF($B38=\"\",\"\",_xlfn.XLOOKUP($B38,Lookup!$V:$V,Lookup!$W:$W))","v":""},{"$f":"IF($B38=\"\",\"\",_xlfn.XLOOKUP($B38,Lookup!$V:$V,Lookup!$X:$X))","v":""},{"$f":"IF($B38=\"\",\"\",_xlfn.XLOOKUP($C38&$D38,EchelleTraitement!$A:$A,EchelleTraitement!$D:$D)/12)","v":""},{"$f":"IF($B38=\"\",\"\",\"Mois\")","v":""},null,null,null,null,null,null,null,null,{"$f":"IF($E38=\"\",\"\",$E38*IF($F38=\"Mois\",$G38,$G38/(21*8))*$H38)","v":""},{"$f":"IFERROR(IF(OR($B$12=\"\",$B$12=1),\"\",IF($B38<>\"\",IF(ROUND(O38,0)=ROUND(SUM($I38:$N38),0),\"\",\"Veuillez renseigner correctement les montants des tranches\"),\"\")),\"\")","v":""}]
[null,null,{"$f":"IF($B39=\"\",\"\",_xlfn.XLOOKUP($B39,Lookup!$V:$V,Lookup!$W:$W))","v":""},{"$f":"IF($B39=\"\",\"\",_xlfn.XLOOKUP($B39,Lookup!$V:$V,Lookup!$X:$X))","v":""},{"$f":"IF($B39=\"\",\"\",_xlfn.XLOOKUP($C39&$D39,EchelleTraitement!$A:$A,EchelleTraitement!$D:$D)/12)","v":""},"",null,null,null,null,null,null,null,null,{"$f":"IF($E39=\"\",\"\",$E39*IF($F39=\"Mois\",$G39,$G39/(21*8))*$H39)","v":""},""]
[null,null,{"$f":"IF($B40=\"\",\"\",_xlfn.XLOOKUP($B40,Lookup!$V:$V,Lookup!$W:$W))","v":""},{"$f":"IF($B40=\"\",\"\",_xlfn.XLOOKUP($B40,Lookup!$V:$V,Lookup!$X:$X))","v":""},{"$f":"IF($B40=\"\",\"\",_xlfn.XLOOKUP($C40&$D40,EchelleTraitement!$A:$A,EchelleTraitement!$D:$D)/12)","v":""},"",null,null,null,null,null,null,null,null,{"$f":"IF($E40=\"\",\"\",$E40*IF($F40=\"Mois\",$G40,$G40/(21*8))*$H40)","v":""},""]
[null,null,{"$f":"IF($B41=\"\",\"\",_xlfn.XLOOKUP($B41,Lookup!$V:$V,Lookup!$W:$W))","v":""},{"$f":"IF($B41=\"\",\"\",_xlfn.XLOOKUP($B41,Lookup!$V:$V,Lookup!$X:$X))","v":""},{"$f":"IF($B41=\"\",\"\",_xlfn.XLOOKUP($C41&$D41,EchelleTraitement!$A:$A,EchelleTraitement!$D:$D)/12)","v":""},"",null,null,null,null,null,null,null,null,{"$f":"IF($E41=\"\",\"\",$E41*IF($F41=\"Mois\",$G41,$G41/(21*8))*$H41)","v":""},""]
[null,null,{"$f":"IF($B42=\"\",\"\",_xlfn.XLOOKUP($B42,Lookup!$V:$V,Lookup!$W:$W))","v":""},{"$f":"IF($B42=\"\",\"\",_xlfn.XLOOKUP($B42,Lookup!$V:$V,Lookup!$X:$X))","v":""},{"$f":"IF($B42=\"\",\"\",_xlfn.XLOOKUP($C42&$D42,EchelleTraitement!$A:$A,EchelleTraitement!$D:$D)/12)","v":""},"",null,null,null,null,null,null,null,null,{"$f":"IF($E42=\"\",\"\",$E42*IF($F42=\"Mois\",$G42,$G42/(21*8))*$H42)","v":""},""]
[null,null,null,"Charges de personnel PAT",null,null,null,null,{"$f":"SUM(I38:I42)","v":0},0,0,0,0,0,0]
[null,null,null,"Cotisations patronales (23%)",null,null,null,null,{"$f":"I43*0.23","v":0},0,0,0,0,0,0]
[null,null,null,"Charges de personnel PAT (sous-total)",null,null,null,null,{"$f":"SUM(I43:I44)","v":0},0,0,0,0,0,0]
[]
["Coûts de fonctionnement"]
["Catégorie","Détails / Explications",null,null,null,"Montant","Devise","Taux de change (+10%)",{"$f":"I$15","v":"Coûts en CHF\nTranche 1"},"Coûts en CHF\nTranche 2","Coûts en CHF\nTranche 3","Coûts en CHF\nTranche 4","Coûts en CHF\nTranche 5","Coûts en CHF\nTranche 6","Coût Total\nCHF"]
[null,null,null,null,null,null,{"$f":"IF($A49=\"\",\"\",\"CHF\")","v":""},{"$f":"IF($A49=\"\",\"\",IF($G49=\"CHF\",1,_xlfn.XLOOKUP($G49,Lookup!$AI:$AI,Lookup!$AK:$AK)*1.1))","v":""},null,null,null,null,null,null,{"$f":"IF($F49=\"\",\"\",F49*H49)","v":""},{"$f":"IFERROR(IF(OR($B$12=\"\",$B$12=1),\"\",IF($A49<>\"\",IF(ROUND(O49,0)=ROUND(SUM($I49:$N49),0),\"\",\"Veuillez renseigner correctement les montants des tranches\"),\"\")),\"\")","v":""}]
[null,null,null,null,null,null,{"$f":"IF($A50=\"\",\"\",\"CHF\")","v":""},{"$f":"IF($A50=\"\",\"\",IF($G50=\"CHF\",1,_xlfn.XLOOKUP($G50,Lookup!$AI:$AI,Lookup!$AK:$AK)*1.1))","v":""},null,null,null,null,null,null,{"$f":"IF($F50=\"\",\"\",F50*H50)","v":""},{"$f":"IFERROR(IF(OR($B$12=\"\",$B$12=1),\"\",IF($A50<>\"\",IF(ROUND(O50,0)=ROUND(SUM($I50:$N50),0),\"\",\"Veuillez renseigner correctement les montants des tranches\"),\"\")),\"\")","v":""}]
[null,null,null,null,null,null,"",{"$f":"IF($A51=\"\",\"\",IF($G51=\"CHF\",1,_xlfn.XLOOKUP($G51,Lookup!$AI:$AI,Lookup!$AK:$AK)*1.1))","v":""},null,null,null,null,null,null,"",""]
[null,null,null,null,null,null,"",{"$f":"IF($A52=\"\",\"\",IF($G52=\"CHF\",1,_xlfn.XLOOKUP($G52,Lookup!$AI:$AI,Lookup!$AK:$AK)*1.1))","v":""},null,null,null,null,null,null,"",""]
[null,null,null,null,null,null,"",{"$f":"IF($A53=\"\",\"\",IF($G53=\"CHF\",1,_xlfn.XLOOKUP($G53,Lookup!$AI:$AI,Lookup!$AK:$AK)*1.1))","v":""},null,null,null,null,null,null,"",""]
[null,null,null,"Coûts de fonctionnement (sous-total)",null,null,null,null,{"$f":"SUM(I49:I53)","v":0},0,0,0,0,0,{"$f":"SUM(O49:O53)","v":0}]
[]
["Utilisation d'équipements"]
["Catégorie","Détails / Explications",null,null,null,"Coût par unité","Unité durée d'utilisation","Durée d'utilisation",{"$f":"I$15","v":"Coûts en CHF\nTranche 1"},"Coûts en CHF\nTranche 2","Coûts en CHF\nTranche 3","Coûts en CHF\nTranche 4","Coûts en CHF\nTranche 5","Coûts en CHF\nTranche 6","Coût Total\nCHF"]
[null,null,null,null,null,null,{"$f":"IF($B58=\"\",\"\",\"Mois\")","v":""},null,null,null,null,null,null,null,{"$f":"IF($A58=\"\",\"\",$F58*$H58)","v":""},{"$f":"IFERROR(IF(OR($B$12=\"\",$B$12=1),\"\",IF($A58<>\"\",IF(ROUND(O58,0)=ROUND(SUM($I58:$N58),0),\"\",\"Veuillez renseigner correctement les montants des tranches\"),\"\")),\"\")","v":""}]
[null,null,null,null,null,null,"",null,null,null,null,null,null,null,{"$f":"IF($A59=\"\",\"\",$F59*$H59)","v":""},""]
[null,null,null,null,null,null,"",null,null,null,null,null,null,null,"",""]
[null,null,null,null,null,null,"",null,null,null,null,null,null,null,"",""]
[null,null,null,null,null,null,"",null,null,null,null,null,null,null,"",""]
[null,null,null,"Coût d'utilisation d'équipements (sous-total)",null,null,null,null,{"$f":"SUM(I58:I62)","v":0},0,0,0,0,0,{"$f":"SUM(O58:O62)","v":0}]
[]
["Coûts de support administratif"]
["En pourcentage des charges de personnel (encadrement, PENS et PAT), des coûts de fonctionnement et des coûts d'utilisation des équipements",null,null,null,null,null,null,0.1,{"$f":"(I$23+I$34+I$45+I$54+I$63)*$H$66","v":0},{"$f":"(J$23+J$34+J$45+J$54+J$63)*$H$66","v":0},0,0,0,0,{"$f":"($O$23+$O$34+$O$45+$O$54+$O$63)*$H$66","v":0}]
[]
[]
["Achat d'équipements"]
["Catégorie","Détails / Explications",null,null,null,"Montant","Devise","Taux de change (+10%)",{"$f":"I$15","v":"Coûts en CHF\nTranche 1"},"Coûts en CHF\nTranche 2","Coûts en CHF\nTranche 3","Coûts en CHF\nTranche 4","Coûts en CHF\nTranche 5","Coûts en CHF\nTranche 6","Coût Total\nCHF"]
[null,null,null,null,null,null,{"$f":"IF($A71=\"\",\"\",\"CHF\")","v":""},{"$f":"IF($A71=\"\",\"\",IF($G71=\"CHF\",1,_xlfn.XLOOKUP($G71,Lookup!$AI:$AI,Lookup!$AK:$AK)*1.1))","v":""},null,null,null,null,null,null,{"$f":"IF($F71=\"\",\"\",F71*H71)","v":""},{"$f":"IFERROR(IF(OR($B$12=\"\",$B$12=1),\"\",IF($A71<>\"\",IF(ROUND(O71,0)=ROUND(SUM($I71:$N71),0),\"\",\"Veuillez renseigner correctement les montants des tranches\"),\"\")),\"\")","v":""}]
[null,null,null,null,null,null,{"$f":"IF($A72=\"\",\"\",\"CHF\")","v":""},{"$f":"IF($A72=\"\",\"\",IF($G72=\"CHF\",1,_xlfn.XLOOKUP($G72,Lookup!$AI:$AI,Lookup!$AK:$AK)*1.1))","v":""},null,null,null,null,null,null,{"$f":"IF($F72=\"\",\"\",F72*H72)","v":""},""]
[null,null,null,null,null,null,"",{"$f":"IF($A73=\"\",\"\",IF($G73=\"CHF\",1,_xlfn.XLOOKUP($G73,Lookup!$AI:$AI,Lookup!$AK:$AK)*1.1))","v":""},null,null,null,null,null,null,"",""]
[null,null,null,null,null,null,"",{"$f":"IF($A74=\"\",\"\",IF($G74=\"CHF\",1,_xlfn.XLOOKUP($G74,Lookup!$AI:$AI,Lookup!$AK:$AK)*1.1))","v":""},null,null,null,null,null,null,"",""]
[null,null,null,null,null,null,"",{"$f":"IF($A75=\"\",\"\",IF($G75=\"CHF\",1,_xlfn.XLOOKUP($G75,Lookup!$AI:$AI,Lookup!$AK:$AK)*1.1))","v":""},null,null,null,null,null,null,"",""]
[null,null,null,"Coût d'achat d'équipements (sous-total)",null,null,null,null,{"$f":"SUM(I71:I75)","v":0},0,0,0,0,0,{"$f":"SUM(O71:O75)","v":0}]
[]
["TOTAL Coûts / Coûts complets en CHF",null,null,null,null,null,null,null,{"$f":"SUM(I79:I80)","v":0},0,0,0,0,0,{"$f":"SUM(O79:O80)","v":0}]
["Coûts imputables sur fonds",null,null,null,null,null,null,null,{"$f":"I34+I45+I54+I63+I76","v":0},{"$f":"J34+J45+J54+J63+J76","v":0},0,0,0,0,{"$f":"O34+O45+O54+O63+O76","v":0}]
["Coûts portés par UNIGE",null,null,null,null,null,null,null,{"$f":"I23+I66","v":0},0,0,0,0,0,{"$f":"O23+O66","v":0}]
["TOTAL Coûts / Coûts complets en devise",null,null,null,null,null,null,"CHF",null,null,null,null,null,null,{"$f":"IF($H$81=\"CHF\",O$78,SUM(O$23,O$34,O$45,O$63,O$66)*_xlfn.XLOOKUP($H$81,Lookup!$AI:$AI,Lookup!$AK:$AK)*1.1+SUMIFS(O$49:O$53,$G$49:$G$53,\"<>\"&$H$81)*_xlfn.XLOOKUP($H$81,Lookup!$AI:$AI,Lookup!$AK:$AK)*1.1+SUMIFS($F$49:$F$53,$G$49:$G$53,$H$81)*_xlfn.XLOOKUP($H$81,Lookup!$AI:$AI,Lookup!$AK:$AK)*1.1+SUMIFS(O$71:O$75,$G$71:$G$75,\"<>\"&$H$81)*_xlfn.XLOOKUP($H$81,Lookup!$AI:$AI,Lookup!$AK:$AK)*1.1+SUMIFS($F$71:$F$75,$G$71:$G$75,$H$81)*_xlfn.XLOOKUP($H$81,Lookup!$AI:$AI,Lookup!$AK:$AK)*1.1)","v":0}]
[]
["Mandants / Bailleurs"]
["Nom du/des bailleur(s)","Type de bailleur\n(Choisir dans la liste déroulante ci-dessous)","Montant HT","Devise","Taux de change (-10%)","Nombre de tranches / années",{"$f":"\"TVA \"&TEXT(Lookup!$AP$2,\"0.0%\")&CHAR(10)","v":"TVA 8.1%\n"},"Overheads\n","Revenus en CHF\nTranche 1","Revenus en CHF\nTranche 2","Revenus en CHF\nTranche 3","Revenus en CHF\nTranche 4","Revenus en CHF\nTranche 5","Revenus en CHF\nTranche 6","Revenu Total\nCHF"]
[null,null,null,null,{"$f":"IF($A85=\"\",\"\",IF($D85=\"CHF\",1,_xlfn.XLOOKUP($D85,Lookup!$AI:$AI,Lookup!$AK:$AK)/1.1))","v":""},{"$f":"IF($A85=\"\",\"\",$B$12)","v":""},null,null,null,null,null,null,null,null,{"$f":"IF($C85=\"\",\"\",$C85*$E85/IF($G85=\"Oui\",(1+Lookup!$AP$2),1))","v":""},{"$f":"IFERROR(IF(OR($B$12=\"\",$B$12=1),\"\",IF($B85<>\"\",IF(ROUND(O85,0)=ROUND(SUM($I85:$N85),0),\"\",\"Veuillez renseigner correctement les montants des tranches\"),\"\")),\"\")","v":""},{"$f":"IFERROR(IF(OR($B$12=\"\",$B$12=1),\"\",IF($B85<>\"\",IF(F85=COUNTA($I85:$N85),\"\",\"Veuillez renseigner correctement le nombre de tranches\"),\"\")),\"\")","v":""}]
[null,null,null,null,{"$f":"IF($A86=\"\",\"\",IF($D86=\"CHF\",1,_xlfn.XLOOKUP($D86,Lookup!$AI:$AI,Lookup!$AK:$AK)/1.1))","v":""},{"$f":"IF($A86=\"\",\"\",$B$12)","v":""},null,null,null,null,null,null,null,null,{"$f":"IF($C86=\"\",\"\",$C86*$E86/IF($G86=\"Oui\",(1+Lookup!$AP$2),1))","v":""},{"$f":"IFERROR(IF(OR($B$12=\"\",$B$12=1),\"\",IF($B86<>\"\",IF(ROUND(O86,0)=ROUND(SUM($I86:$N86),0),\"\",\"Veuillez renseigner correctement les montants des tranches\"),\"\")),\"\")","v":""},{"$f":"IFERROR(IF(OR($B$12=\"\",$B$12=1),\"\",IF($B86<>\"\",IF(F86=COUNTA($I86:$N86),\"\",\"Veuillez renseigner correctement le nombre de tranches\"),\"\")),\"\")","v":""}]
[null,null,null,{"$f":"IF($B87=\"\",\"\",\"CHF\")","v":""},{"$f":"IF($A87=\"\",\"\",IF($D87=\"CHF\",1,_xlfn.XLOOKUP($D87,Lookup!$AI:$AI,Lookup!$AK:$AK)/1.1))","v":""},{"$f":"IF($A87=\"\",\"\",$B$12)","v":""},{"$f":"IF($C87=\"\",\"\",\"Oui\")","v":""},{"$f":"IF($C87=\"\",\"\",\"Oui\")","v":""},null,null,null,null,null,null,{"$f":"IF($C87=\"\",\"\",$C87*$E87/IF($G87=\"Oui\",(1+Lookup!$AP$2),1))","v":""},"",""]
[null,null,null,"",{"$f":"IF($A88=\"\",\"\",IF($D88=\"CHF\",1,_xlfn.XLOOKUP($D88,Lookup!$AI:$AI,Lookup!$AK:$AK)/1.1))","v":""},"","",{"$f":"IF($C88=\"\",\"\",\"Oui\")","v":""},null,null,null,null,null,null,{"$f":"IF($C88=\"\",\"\",$C88*$E88/IF($G88=\"Oui\",(1+Lookup!$AP$2),1))","v":""},"",""]
[null,null,null,"",{"$f":"IF($A89=\"\",\"\",IF($D89=\"CHF\",1,_xlfn.XLOOKUP($D89,Lookup!$AI:$AI,Lookup!$AK:$AK)/1.1))","v":""},"","",{"$f":"IF($C89=\"\",\"\",\"Oui\")","v":""},null,null,null,null,null,null,{"$f":"IF($C89=\"\",\"\",$C89*$E89/IF($G89=\"Oui\",(1+Lookup!$AP$2),1))","v":""},"",""]
[null,null,null,"Total mandants / bailleurs",null,null,{"$f":"SUMIFS($O$85:$O$89,$G$85:$G$89,\"Oui\")*Lookup!$AP$2","v":0},{"$f":"SUMIFS($O$85:$O$89,$H$85:$H$89,\"Oui\")*(_xlfn.XLOOKUP(\"UNIGE\",Lookup!$AM:$AM,Lookup!$AN:$AN)+_xlfn.XLOOKUP($B$6,Lookup!$AM:$AM,Lookup!$AN:$AN))","v":0},{"$f":"SUM(I85:I89)","v":0},{"$f":"SUM(J85:J89)","v":0},0,0,0,0,{"$f":"SUM(O85:O89)","v":0}]
[]
["TOTAL Revenus en CHF",null,null,null,null,null,null,null,{"$f":"I90","v":0},{"$f":"J90","v":0},0,0,0,0,{"$f":"SUM(O93:O95)","v":0}]
["Revenus imputables sur fonds en CHF",null,null,null,null,null,null,null,{"$f":"I92-SUM(I94:I95)","v":0},{"$f":"J92-SUM(J94:J95)","v":0},0,0,0,0,{"$f":"O90-H90","v":0}]
[{"$f":"\"Overheads perçus UNIGE (\"&TEXT(_xlfn.XLOOKUP(\"UNIGE\",Lookup!$AM:$AM,Lookup!$AN:$AN),\"0%\")&\") en CHF\"","v":"Overheads perçus UNIGE (9%) en CHF"},null,null,null,null,null,null,null,{"$f":"SUMIFS(I$85:I$89,$H$85:$H$89,\"Oui\")*_xlfn.XLOOKUP(\"UNIGE\",Lookup!$AM:$AM,Lookup!$AN:$AN)","v":0},{"$f":"SUMIFS(J$85:J$89,$H$85:$H$89,\"Oui\")*_xlfn.XLOOKUP(\"UNIGE\",Lookup!$AM:$AM,Lookup!$AN:$AN)","v":0},{"$f":"SUMIFS(K$85:K$89,$H$85:$H$89,\"Oui\")*_xlfn.XLOOKUP(\"UNIGE\",Lookup!$AM:$AM,Lookup!$AN:$AN)","v":0},{"$f":"SUMIFS(L$85:L$89,$H$85:$H$89,\"Oui\")*_xlfn.XLOOKUP(\"UNIGE\",Lookup!$AM:$AM,Lookup!$AN:$AN)","v":0},{"$f":"SUMIFS(M$85:M$89,$H$85:$H$89,\"Oui\")*_xlfn.XLOOKUP(\"UNIGE\",Lookup!$AM:$AM,Lookup!$AN:$AN)","v":0},{"$f":"SUMIFS(N$85:N$89,$H$85:$H$89,\"Oui\")*_xlfn.XLOOKUP(\"UNIGE\",Lookup!$AM:$AM,Lookup!$AN:$AN)","v":0},{"$f":"SUMIFS($O$85:$O$89,$H$85:$H$89,\"Oui\")*_xlfn.XLOOKUP(\"UNIGE\",Lookup!$AM:$AM,Lookup!$AN:$AN)","v":0}]
[{"$f":"\"Overheads perçus \"&$B$6&\" (\"&TEXT(_xlfn.XLOOKUP($B$6,Lookup!$AM:$AM,Lookup!$AN:$AN),\"0%\")&\") en CHF\"","v":"Overheads perçus  (0%) en CHF"},null,null,null,null,null,null,null,{"$f":"SUMIFS(I$85:I$89,$H$85:$H$89,\"Oui\")*_xlfn.XLOOKUP($B$6,Lookup!$AM:$AM,Lookup!$AN:$AN)","v":0},{"$f":"SUMIFS(J$85:J$89,$H$85:$H$89,\"Oui\")*_xlfn.XLOOKUP($B$6,Lookup!$AM:$AM,Lookup!$AN:$AN)","v":0},{"$f":"SUMIFS(K$85:K$89,$H$85:$H$89,\"Oui\")*_xlfn.XLOOKUP($B$6,Lookup!$AM:$AM,Lookup!$AN:$AN)","v":0},{"$f":"SUMIFS(L$85:L$89,$H$85:$H$89,\"Oui\")*_xlfn.XLOOKUP($B$6,Lookup!$AM:$AM,Lookup!$AN:$AN)","v":0},{"$f":"SUMIFS(M$85:M$89,$H$85:$H$89,\"Oui\")*_xlfn.XLOOKUP($B$6,Lookup!$AM:$AM,Lookup!$AN:$AN)","v":0},{"$f":"SUMIFS(N$85:N$89,$H$85:$H$89,\"Oui\")*_xlfn.XLOOKUP($B$6,Lookup!$AM:$AM,Lookup!$AN:$AN)","v":0},{"$f":"SUMIFS($O$85:$O$89,$H$85:$H$89,\"Oui\")*_xlfn.XLOOKUP($B$6,Lookup!$AM:$AM,Lookup!$AN:$AN)","v":0}]
[]
["Résultat du projet en CHF",null,null,null,null,null,null,null,{"$f":"SUM(I98:I100)","v":0},{"$f":"SUM(J98:J100)","v":0},0,0,0,0,0]
["Résultat imputable sur fonds",null,null,null,null,null,null,null,{"$f":"I93-I79","v":0},{"$f":"J93-J79","v":0},0,0,0,0,0]
["Résultat UNIGE",null,null,null,null,null,null,null,{"$f":"I94-I80","v":0},{"$f":"J94-J80","v":0},0,0,0,0,{"$f":"O94-O80","v":0}]
[{"$f":"\"Résultat \"&$B$6","v":"Résultat "},null,null,null,null,null,null,null,{"$f":"I95","v":0},0,0,0,0,0,{"$f":"O95","v":0}]
[]
["Taux de couverture global",null,null,null,null,null,null,null,{"$f":"IFERROR(I92/I78,0)","v":0},{"$f":"IFERROR(J92/J78,0)","v":0},0,0,0,0,{"$f":"IFERROR(O92/O78,1)","v":1}]
["Taux de couverture fonds (Coûts imputable sur fonds / revenus imputable sur fonds)",null,null,null,null,null,null,null,{"$f":"IFERROR(I93/I79,0)","v":0},{"$f":"IFERROR(J93/J79,0)","v":0},0,0,0,0,{"$f":"IFERROR(O93/O79,1)","v":1}]
["Taux de couverture UNIGE (Coûts UNIGE / Overheads)",null,null,null,null,null,null,null,{"$f":"IFERROR(I95/I80,0)","v":0},{"$f":"IFERROR(J95/J80,0)","v":0},0,0,0,0,{"$f":"IFERROR(O95/O80,1)","v":1}]
[]
["Merci d'indiquer le-s fonds qui supportera-ont la perte budgétée du projet",null,"Fonds:"]

{"sheet":"Lookup","index":1,"n_rows":208,"n_cols":42,"rows_kept":208,"cut":false,"hidden":true,"merged":[]}
["Entité",null,"Entité","Sous-Entité",null,"Type de bailleurs",null,"Fct","Fonction libellé","Fonction personnel encadrement","Classe","Annuité moyenne",null,"Fct","Fonction libellé","Fonction personnel PENS","Classe","Annuité moyenne",null,"Fct","Fonction libellé","Fonction personnel PAT","Classe","Annuité moyenne",null,"Annuités",null,"Catégorie fonctionnement",null,"Utilisation des équipements","Durée d'utilité",null,"Achat d'équipement",null,"Monnaie","Recherche","Taux de change",null,"Structure","Overheads",null,"Taux TVA"]
["Sciences",null,"Divisions","DIBAT",null,"Subvention publique (Etat et Confédération)",null,"PO","Professeur-e ordinaire",{"$f":"H2&\"-\"&I2","v":"PO-Professeur-e ordinaire"},30,13,null,"COLS1","Collaborateur-trice scientifique I",{"$f":"N2&\"-\"&O2","v":"COLS1-Collaborateur-trice scientifique I"},17,7,null,104003,"ingénieur-e ETS d'exploitation",{"$f":"T2&\"-\"&U2","v":"104003-ingénieur-e ETS d'exploitation"},16,7,null,0,null,"Animaux",null,"Utilisation du matériel informatique",4,null,"Appareils scientifiques",null,"CHF",null,1,null,"UNIGE",0.09,null,8.1000000000000003E-2]
["Médecine",null,"Divisions","DIFE",null,"Subvention entreprise privée à but lucratif",null,"PAS","Professeur-e associé-e",{"$f":"H3&\"-\"&I3","v":"PAS-Professeur-e associé-e"},25,12,null,"COLS2","Collaborateur-trice scientifique II",{"$f":"N3&\"-\"&O3","v":"COLS2-Collaborateur-trice scientifique II"},19,8,null,104005,"ingénieur-e - technicien-ne en génie chimique",{"$f":"T3&\"-\"&U3","v":"104005-ingénieur-e - technicien-ne en génie chimique"},16,7,null,1,null,"Annonces, publications",null,"Utilisation de logiciels",4,null,"Matériel informatique",null,"EUR",{"$error":"#VALUE!"},{"$f":"_FV(AJ3,\"Prix\")","v":0.93930000000000002},null,"Sciences",0]
["Lettres",null,"Divisions","DIFIN",null,"Subvention entreprise privée à but non lucratif",null,"PAST","professeur-e assistant-e","PAST-professeur-e assistant-e",24,5,null,"MA","Maître assistant-e","MA-Maître assistant-e",17,5,null,104007,"ingénieur-e ets en électronique","104007-ingénieur-e ets en électronique",16,9,null,2,null,"Articles en Open Access",null,"Utilisation d'appareils scientifiques",5,null,"Logiciels",null,"USD",{"$error":"#VALUE!"},0.91190000000000004,null,"Médecine",0.04]
["Droit",null,"Divisions","DIRH",null,"Mandats / Prestations service",null,"PTI","Professeur-e titulaire","PTI-Professeur-e titulaire",23,17,null,"A2","Assistant-e (A2)","A2-Assistant-e (A2)",8,8,null,104018,"ingénieur-e ETS de recherche","104018-ingénieur-e ETS de recherche",17,9,null,3,null,"Conférenciers jurés",null,"Utilisation de machines et outillage",5,null,"Machines et outillage",null,"GBP",{"$error":"#VALUE!"},1.1148,null,"Lettres",0]
["Théologie",null,"Divisions","DIS",null,"Analyses laboratoire / LTA",null,"CE10","Chargé-e d'enseignement","CE10-Chargé-e d'enseignement",20,13,null,"PDOC","Post-doctorant-e","PDOC-Post-doctorant-e",14,2,null,104020,"ingénieur-e ets spécialiste","104020-ingénieur-e ets spécialiste",17,4,null,4,null,"Consommables",null,"Utilisation du mobilier",8,null,"Mobilier",null,null,null,null,null,"Droit",0]
["FPSE",null,"Divisions","DiSTIC",null,"Inscriptions diverses / Conférences",null,"CS","Chef-fe de clinique scientifique","CS-Chef-fe de clinique scientifique",22,10,null,"MC","Assistant-e médecin (méd. clin.)","MC-Assistant-e médecin (méd. clin.)",16,7,null,104022,"architecte spécialiste","104022-architecte spécialiste",17,12,null,5,null,"Entretien matériel médical",null,null,null,null,null,null,null,null,null,null,"Théologie",0]
["FTI",null,"Rectorat et services rattachés","Affaires internationales",null,"Inscriptions formation continue",null,"MER","Maître d'enseignement et de recherche","MER-Maître d'enseignement et de recherche",23,12,null,"MD","Assistant-e médecin dentiste","MD-Assistant-e médecin dentiste",15,6,null,105004,"ingénieur-e chargé-e de missions techniques","105004-ingénieur-e chargé-e de missions techniques",19,11,null,6,null,"Fournitures générales",null,null,null,null,null,null,null,null,null,null,"FPSE",0]
["GSEM",null,"Rectorat et services rattachés","Affaires juridiques ",null,null,null,"CC10","Chargé-e de cours","CC10-Chargé-e de cours",23,13,null,"ARE","Auxiliaire de recherche et d'enseignement","ARE-Auxiliaire de recherche et d'enseignement",6,1,null,105384,"ingénieur-e universitaire de recherche","105384-ingénieur-e universitaire de recherche",20,10,null,7,null,"Fournitures laboratoire",null,null,null,null,null,null,null,null,null,null,"FTI",0]
["SDS",null,"Rectorat et services rattachés","Bureau de la transistion numérique",null,null,null,"COLS1","Collaborateur-trice scientifique I","COLS1-Collaborateur-trice scientifique I",17,7,null,"PO","Professeur-e ordinaire","PO-Professeur-e ordinaire",30,13,null,201002,"ingénieur-e de système 2","201002-ingénieur-e de système 2",21,10,null,8,null,"Imprimés, impression",null,null,null,null,null,null,null,null,null,null,"GSEM",0]
["Centres interfacultaires",null,"Rectorat et services rattachés","Bureau du développement durable (SDG's)",null,null,null,"COLS2","Collaborateur-trice scientifique II","COLS2-Collaborateur-trice scientifique II",19,8,null,"PAS","Professeur-e associé-e","PAS-Professeur-e associé-e",25,12,null,201003,"ingénieur-e système 3 / chef-fe ingénieur-e de système","201003-ingénieur-e système 3 / chef-fe ingénieur-e de système",23,13,null,9,null,"Location de locaux",null,null,null,null,null,null,null,null,null,null,"SDS",0]
["Divisions",null,"Rectorat et services rattachés","Centre Confucius",null,null,null,null,null,null,null,null,null,"PAST","professeur-e assistant-e","PAST-professeur-e assistant-e",24,5,null,201004,"ingénieur-e de système 1","201004-ingénieur-e de système 1",17,10,null,10,null,"Location matériel",null,null,null,null,null,null,null,null,null,null,"Centres interfacultaires",0]
["Rectorat et services rattachés",null,"Rectorat et services rattachés","Centre de philantropie - Geneva Centre for Philantropy",null,null,null,null,null,null,null,null,null,"PTI","Professeur-e titulaire","PTI-Professeur-e titulaire",23,17,null,201006,"analyste-système","201006-analyste-système",17,7,null,11,null,"Mandat, honoraires prestation",null,null,null,null,null,null,null,null,null,null,"Divisions",0]
[null,null,"Rectorat et services rattachés","Centre Maurice Chalumeau",null,null,null,null,null,null,null,null,null,"CE10","Chargé-e d'enseignement","CE10-Chargé-e d'enseignement",20,13,null,202001,"programmeur-euse 1","202001-programmeur-euse 1",10,1,null,12,null,"Organisation congrès",null,null,null,null,null,null,null,null,null,null,"Rectorat et services rattachés",0]
[null,null,"Rectorat et services rattachés","Commission universitaire d'éthique de la recherche",null,null,null,null,null,null,null,null,null,"CS","Chef-fe de clinique scientifique","CS-Chef-fe de clinique scientifique",22,10,null,202004,"analyste-programmeur-euse de système","202004-analyste-programmeur-euse de système",17,8,null,13,null,"Photocopies, copies"]
[null,null,"Rectorat et services rattachés","Communication",null,null,null,null,null,null,null,null,null,"MER","Maître d'enseignement et de recherche","MER-Maître d'enseignement et de recherche",23,12,null,202005,"analyste en informatique","202005-analyste en informatique",20,9,null,14,null,"Salaires facturés"]
[null,null,"Rectorat et services rattachés","Egalité",null,null,null,null,null,null,null,null,null,"CC10","Chargé-e de cours","CC10-Chargé-e de cours",23,13,null,202006,"concepteur-trice en informatique","202006-concepteur-trice en informatique",23,9,null,15,null,"Taxes, frais divers"]
[null,null,"Rectorat et services rattachés","Expérimentation animale",null,null,null,null,null,null,null,null,null,null,null,null,null,null,null,202007,"programmeur-euse analyste","202007-programmeur-euse analyste",15,3,null,16,null,"Travaux laboratoire"]
[null,null,"Rectorat et services rattachés","Formation continue",null,null,null,null,null,null,null,null,null,null,null,null,null,null,null,202009,"architecte de développement informatique","202009-architecte de développement informatique",23,12,null,17,null,"Déplacement personnel EXTERNE"]
[null,null,"Rectorat et services rattachés","Geneva - Tsinghua Initiative",null,null,null,null,null,null,null,null,null,null,null,null,null,null,null,202012,"informaticien-ne de développement 1","202012-informaticien-ne de développement 1",19,8,null,18,null,"Déplacement personnel INTERNE"]
[null,null,"Rectorat et services rattachés","Geneva Science - Policy Interface",null,null,null,null,null,null,null,null,null,null,null,null,null,null,null,202013,"informaticien-ne de développement 2","202013-informaticien-ne de développement 2",21,13,null,19,null,"Repas personnel EXTERNE"]
[null,null,"Rectorat et services rattachés","InZone",null,null,null,null,null,null,null,null,null,null,null,null,null,null,null,202014,"informaticien-ne de développement 3","202014-informaticien-ne de développement 3",22,12,null,20,null,"Repas personnel INTERNE"]
[null,null,"Rectorat et services rattachés","Mobilité académique",null,null,null,null,null,null,null,null,null,null,null,null,null,null,null,202018,"Développeur/euse 1","202018-Développeur/euse 1",17,4,null,21]
[null,null,"Rectorat et services rattachés","Recherche",null,null,null,null,null,null,null,null,null,null,null,null,null,null,null,202026,"chef-fe de projet 1","202026-chef-fe de projet 1",17,3,null,22]
[null,null,"Rectorat et services rattachés","Rectorat et SG",null,null,null,null,null,null,null,null,null,null,null,null,null,null,null,203036,"ingénieur-e ets en informatique","203036-ingénieur-e ets en informatique",16,11]
[null,null,"Rectorat et services rattachés","Service de l'audit interne",null,null,null,null,null,null,null,null,null,null,null,null,null,null,null,204001,"chimiste","204001-chimiste",18,8]
[null,null,"Rectorat et services rattachés","UNITEC",null,null,null,null,null,null,null,null,null,null,null,null,null,null,null,204002,"chimiste spécialisé-e","204002-chimiste spécialisé-e",19,11]
[null,null,"Rectorat et services rattachés","Welcome Center",null,null,null,null,null,null,null,null,null,null,null,null,null,null,null,204003,"chimiste chef-fe de section","204003-chimiste chef-fe de section",21,8]
[null,null,"Centres interfacultaires","CIBSHM",null,null,null,null,null,null,null,null,null,null,null,null,null,null,null,205001,"biologiste 1","205001-biologiste 1",18,8]
[null,null,"Centres interfacultaires","CIDE",null,null,null,null,null,null,null,null,null,null,null,null,null,null,null,205006,"biologiste 2","205006-biologiste 2",21,12]
[null,null,"Centres interfacultaires","CIGEV",null,null,null,null,null,null,null,null,null,null,null,null,null,null,null,206001,"physicien-ne spécialisé-e","206001-physicien-ne spécialisé-e",19,10]
[null,null,"Centres interfacultaires","CIN",null,null,null,null,null,null,null,null,null,null,null,null,null,null,null,206004,"organisateur-trice-conseil","206004-organisateur-trice-conseil",21,11]
[null,null,"Centres interfacultaires","CISA",null,null,null,null,null,null,null,null,null,null,null,null,null,null,null,206005,"organisateur-trice","206005-organisateur-trice",18,8]
[null,null,"Centres interfacultaires","CUI",null,null,null,null,null,null,null,null,null,null,null,null,null,null,null,206006,"assistant-e organisation","206006-assistant-e organisation",15,7]
[null,null,"Centres interfacultaires","GFRI",null,null,null,null,null,null,null,null,null,null,null,null,null,null,null,206009,"archéologue","206009-archéologue",18,7]
[null,null,"Centres interfacultaires","GSI",null,null,null,null,null,null,null,null,null,null,null,null,null,null,null,206020,"adjoint-e scientifique 3","206020-adjoint-e scientifique 3",21,10]
[null,null,"Centres interfacultaires","IGE3",null,null,null,null,null,null,null,null,null,null,null,null,null,null,null,206022,"concepteur-trice départemental web","206022-concepteur-trice départemental web",15,7]
[null,null,"Centres interfacultaires","IHR",null,null,null,null,null,null,null,null,null,null,null,null,null,null,null,206023,"adjoint-e scientifique 1","206023-adjoint-e scientifique 1",17,5]
[null,null,"Centres interfacultaires","ISE",null,null,null,null,null,null,null,null,null,null,null,null,null,null,null,206024,"adjoint-e scientifique 2","206024-adjoint-e scientifique 2",19,9]
[null,null,"Centres interfacultaires","IUFE",null,null,null,null,null,null,null,null,null,null,null,null,null,null,null,206339,"collaborateur-trice scientifique de rech. dpt d'anthropologie et d'écologie","206339-collaborateur-trice scientifique de rech. dpt d'anthropologie et d'écologie",18,10]
[null,null,"Centres interfacultaires","MdH",null,null,null,null,null,null,null,null,null,null,null,null,null,null,null,206367,"concepteur-trice en communication web - uni","206367-concepteur-trice en communication web - uni",17,6]
[null,null,"Sciences","Serv.communs Faculté des Sciences",null,null,null,null,null,null,null,null,null,null,null,null,null,null,null,206702,"adjoint-e scientifique spécialisé-e","206702-adjoint-e scientifique spécialisé-e",23,12]
[null,null,"Sciences","Section de mathématiques",null,null,null,null,null,null,null,null,null,null,null,null,null,null,null,208002,"assistant-e statisticien-ne","208002-assistant-e statisticien-ne",14,5]
[null,null,"Sciences","Département d'astronomie",null,null,null,null,null,null,null,null,null,null,null,null,null,null,null,208003,"statisticien-ne","208003-statisticien-ne",18,6]
[null,null,"Sciences","Section de physique",null,null,null,null,null,null,null,null,null,null,null,null,null,null,null,208004,"statisticien-ne spécialiste","208004-statisticien-ne spécialiste",20,10]
[null,null,"Sciences","Section de chimie et biochimie",null,null,null,null,null,null,null,null,null,null,null,null,null,null,null,209002,"sociologue","209002-sociologue",18,8]
[null,null,"Sciences","Section sciences Terre et Environnement",null,null,null,null,null,null,null,null,null,null,null,null,null,null,null,210001,"assistant-e de recherche 1 en pédagogie","210001-assistant-e de recherche 1 en pédagogie",18,7]
[null,null,"Sciences","Section de biologie",null,null,null,null,null,null,null,null,null,null,null,null,null,null,null,210004,"assistant-e de recherche 2 en pédagogie","210004-assistant-e de recherche 2 en pédagogie",20,11]
[null,null,"Sciences","Section des sciences pharmaceutiques",null,null,null,null,null,null,null,null,null,null,null,null,null,null,null,408302,"maître-esse de sport au bureau des sports de l'uni","408302-maître-esse de sport au bureau des sports de l'uni",19,8]
[null,null,"Sciences","Département d'informatique",null,null,null,null,null,null,null,null,null,null,null,null,null,null,null,704006,"logopédiste 1","704006-logopédiste 1",18,5]
[null,null,"Sciences","Unités rattachées faculté des Sciences",null,null,null,null,null,null,null,null,null,null,null,null,null,null,null,704031,"logopédiste 2","704031-logopédiste 2",20,12]
[null,null,"Médecine","Structures directement rattachées au décanat",null,null,null,null,null,null,null,null,null,null,null,null,null,null,null,709018,"médecin-dentiste","709018-médecin-dentiste",23,11]
[null,null,"Médecine","Section de médecine fondamentale",null,null,null,null,null,null,null,null,null,null,null,null,null,null,null,709020,"médecin adjoint-e b","709020-médecin adjoint-e b",25,13]
[null,null,"Médecine","Section de médecine clinique",null,null,null,null,null,null,null,null,null,null,null,null,null,null,null,709021,"médecin adjoint-e c","709021-médecin adjoint-e c",23,15]
[null,null,"Médecine","Section de médecine dentaire - CUMD",null,null,null,null,null,null,null,null,null,null,null,null,null,null,null,712003,"psychologue 1","712003-psychologue 1",18,4]
[null,null,"Médecine","Institut des sciences du mouvement et de la médecine du sport",null,null,null,null,null,null,null,null,null,null,null,null,null,null,null,712004,"psychologue 2","712004-psychologue 2",20,10]
[null,null,"Lettres","Administration Faculté des Lettres",null,null,null,null,null,null,null,null,null,null,null,null,null,null,null,713310,"codeur-se professionnel-le non breveté-e","713310-codeur-se professionnel-le non breveté-e",14,12]
[null,null,"Lettres","Département de langues et littératures françaises et latines médiévales",null,null,null,null,null,null,null,null,null,null,null,null,null,null,null,101003,"assistant-e technique 2 chef-fe","101003-assistant-e technique 2 chef-fe",13,12]
[null,null,"Lettres","Département de langue et de littérature françaises modernes",null,null,null,null,null,null,null,null,null,null,null,null,null,null,null,102028,"dessinateur-trice 3 graphiste","102028-dessinateur-trice 3 graphiste",11,13]
[null,null,"Lettres","Département de linguistique",null,null,null,null,null,null,null,null,null,null,null,null,null,null,null,103001,"technicien-ne en chimie","103001-technicien-ne en chimie",13,12]
[null,null,"Lettres","Département de langue et de littérature allemandes",null,null,null,null,null,null,null,null,null,null,null,null,null,null,null,103002,"technicien-ne - horticole","103002-technicien-ne - horticole",13,9]
[null,null,"Lettres","Département de langue et littérature anglaises",null,null,null,null,null,null,null,null,null,null,null,null,null,null,null,103007,"technicien-ne électromécanicien-ne","103007-technicien-ne électromécanicien-ne",13,12]
[null,null,"Lettres","Département de langues et littératures romanes",null,null,null,null,null,null,null,null,null,null,null,null,null,null,null,103008,"technicien-ne - électricien-ne","103008-technicien-ne - électricien-ne",13,12]
[null,null,"Lettres","Département de langues méditéranéennes, slaves et orientales",null,null,null,null,null,null,null,null,null,null,null,null,null,null,null,103009,"technicien-ne - mécanicien-ne","103009-technicien-ne - mécanicien-ne",13,13]
[null,null,"Lettres","Département des études est-asiatiques",null,null,null,null,null,null,null,null,null,null,null,null,null,null,null,103010,"technicien-ne électronicien-ne","103010-technicien-ne électronicien-ne",13,10]
[null,null,"Lettres","Département des sciences de l'antiquité",null,null,null,null,null,null,null,null,null,null,null,null,null,null,null,103016,"technicien-ne - spécialiste","103016-technicien-ne - spécialiste",15,13]
[null,null,"Lettres","Département de philosophie",null,null,null,null,null,null,null,null,null,null,null,null,null,null,null,103357,"responsable technique de site - uni",{"$f":"T67&\"-\"&U67","v":"103357-responsable technique de site - uni"},14,13]
[null,null,"Lettres","Département d'histoire générale",null,null,null,null,null,null,null,null,null,null,null,null,null,null,null,104021,"chargé-e de sécurité - spécialiste msst - niveau 3","104021-chargé-e de sécurité - spécialiste msst - niveau 3",17,11]
[null,null,"Lettres","Département d'histoire de l'art et musicologie",null,null,null,null,null,null,null,null,null,null,null,null,null,null,null,105429,"ingénieur-e spécialiste MSST","105429-ingénieur-e spécialiste MSST",20,12]
[null,null,"Lettres","Ecole de langue et civilisation françaises",null,null,null,null,null,null,null,null,null,null,null,null,null,null,null,203018,"administrateur-trice - système 1","203018-administrateur-trice - système 1",13,9]
[null,null,"Lettres","Cours d'été",null,null,null,null,null,null,null,null,null,null,null,null,null,null,null,203019,"administrateur-trice - système 2","203019-administrateur-trice - système 2",15,11]
[null,null,"Droit","Services communs de la faculté de droit",null,null,null,null,null,null,null,null,null,null,null,null,null,null,null,203025,"technicien-ne support assistance informatique 1","203025-technicien-ne support assistance informatique 1",10,6]
[null,null,"Droit","Département d'histoire du droit et des doctrines juridiques et politiques",null,null,null,null,null,null,null,null,null,null,null,null,null,null,null,203026,"technicien-ne support assistance informatique 2","203026-technicien-ne support assistance informatique 2",12,10]
[null,null,"Droit","Centre d'étude, de technique et d'évaluation législatives",null,null,null,null,null,null,null,null,null,null,null,null,null,null,null,203027,"technicien-ne support assistance informatique 3","203027-technicien-ne support assistance informatique 3",14,11]
[null,null,"Droit","Académie de droit international humanitaire",null,null,null,null,null,null,null,null,null,null,null,null,null,null,null,405014,"animateur-trice socioculturel-le","405014-animateur-trice socioculturel-le",15,8]
[null,null,"Droit","Centre d'études juridiques européennes",null,null,null,null,null,null,null,null,null,null,null,null,null,null,null,505016,"agent-e d'équipement 3","505016-agent-e d'équipement 3",14,11]
[null,null,"Droit","Centre de droit bancaire et financier",null,null,null,null,null,null,null,null,null,null,null,null,null,null,null,505335,"chef-fe des magasins-section chimie uni","505335-chef-fe des magasins-section chimie uni",14,10]
[null,null,"Droit","Centre universitaire du droit de l'art",null,null,null,null,null,null,null,null,null,null,null,null,null,null,null,631301,"chef-fe du centre de zootechnie","631301-chef-fe du centre de zootechnie",15,13]
[null,null,"Droit","Ecole d'avocature",null,null,null,null,null,null,null,null,null,null,null,null,null,null,null,704056,"Ergothérapeute","704056-Ergothérapeute",15,9]
[null,null,"Droit","Département de droit public",null,null,null,null,null,null,null,null,null,null,null,null,null,null,null,707007,"laborantin-e - chef-fe","707007-laborantin-e - chef-fe",15,12]
[null,null,"Droit","Département de droit international public et organisation internationale",null,null,null,null,null,null,null,null,null,null,null,null,null,null,null,101001,"assistant-e technique 1","101001-assistant-e technique 1",10,9]
[null,null,"Droit","Département de droit pénal",null,null,null,null,null,null,null,null,null,null,null,null,null,null,null,101002,"assistant-e technique 2","101002-assistant-e technique 2",11,11]
[null,null,"Droit","Département de droit civil",null,null,null,null,null,null,null,null,null,null,null,null,null,null,null,106001,"assistant-e technique mav","106001-assistant-e technique mav",11,8]
[null,null,"Droit","Département de droit international privé",null,null,null,null,null,null,null,null,null,null,null,null,null,null,null,106004,"électronicien-ne mav qualifié-e de maîtrise","106004-électronicien-ne mav qualifié-e de maîtrise",12,13]
[null,null,"Droit","Département de droit commercial",null,null,null,null,null,null,null,null,null,null,null,null,null,null,null,106005,"technicien-ne - électronicien-ne","106005-technicien-ne - électronicien-ne",12,9]
[null,null,"Droit","Centre du droit numérique",null,null,null,null,null,null,null,null,null,null,null,null,null,null,null,106009,"réalisateur-trice de productions mav","106009-réalisateur-trice de productions mav",15,9]
[null,null,"Théologie","Services communs de la faculté autonome de théologie protestante",null,null,null,null,null,null,null,null,null,null,null,null,null,null,null,106011,"technicien-ne de production mav","106011-technicien-ne de production mav",13,9]
[null,null,"Théologie","Ancien testament",null,null,null,null,null,null,null,null,null,null,null,null,null,null,null,203011,"préparateur-trice de travaux 2","203011-préparateur-trice de travaux 2",10,10]
[null,null,"Théologie","Nouveau testament",null,null,null,null,null,null,null,null,null,null,null,null,null,null,null,509541,"responsable logistique administrative dase - uni","509541-responsable logistique administrative dase - uni",12,10]
[null,null,"Théologie","Apocryphe",null,null,null,null,null,null,null,null,null,null,null,null,null,null,null,626003,"photographe spécialiste","626003-photographe spécialiste",10,13]
[null,null,"Théologie","Histoire",null,null,null,null,null,null,null,null,null,null,null,null,null,null,null,626010,"photographe de maîtrise","626010-photographe de maîtrise",11,14]
[null,null,"Théologie","Systématique",null,null,null,null,null,null,null,null,null,null,null,null,null,null,null,626011,"conducteur-trice offset spécialisé-e","626011-conducteur-trice offset spécialisé-e",10,12]
[null,null,"Théologie","Éthique",null,null,null,null,null,null,null,null,null,null,null,null,null,null,null,627306,"adjoint-e ingénieur-e de sécurité uni","627306-adjoint-e ingénieur-e de sécurité uni",15,13]
[null,null,"Théologie","Hébreu théologie",null,null,null,null,null,null,null,null,null,null,null,null,null,null,null,627307,"assistant-e service sécurité","627307-assistant-e service sécurité",12,11]
[null,null,"Théologie","Inter religions",null,null,null,null,null,null,null,null,null,null,null,null,null,null,null,631011,"préparateur-trice animalier-ère","631011-préparateur-trice animalier-ère",8,8]
[null,null,"Théologie","Psychologie des religions",null,null,null,null,null,null,null,null,null,null,null,null,null,null,null,701028,"infirmier-ère spécialisé-e","701028-infirmier-ère spécialisé-e",16,14]
[null,null,"Théologie","Institut Romand de systématique et d'éthique",null,null,null,null,null,null,null,null,null,null,null,null,null,null,null,703008,"hygiéniste dentaire","703008-hygiéniste dentaire",12,11]
[null,null,"Théologie","Théologie pratique",null,null,null,null,null,null,null,null,null,null,null,null,null,null,null,704055,"technicien-ne en radiologie médicale","704055-technicien-ne en radiologie médicale",15,4]
[null,null,"FPSE","Services communs de la faculté de psychologie et des sciences de l'éducation",null,null,null,null,null,null,null,null,null,null,null,null,null,null,null,705002,"maître-sse socio-professionnel-le","705002-maître-sse socio-professionnel-le",14,0]
[null,null,"FPSE","Section de psychologie",null,null,null,null,null,null,null,null,null,null,null,null,null,null,null,707004,"préparateur-trice technique","707004-préparateur-trice technique",10,8]
[null,null,"FPSE","Section des sciences de l'éducation",null,null,null,null,null,null,null,null,null,null,null,null,null,null,null,707008,"laborantin-e 1","707008-laborantin-e 1",10,3]
[null,null,"FPSE","Technologies de formation et apprentissage",null,null,null,null,null,null,null,null,null,null,null,null,null,null,null,707009,"laborantin-e 2","707009-laborantin-e 2",12,9]
[null,null,"FTI","Services communs de la faculté de traduction et d'interprétation",null,null,null,null,null,null,null,null,null,null,null,null,null,null,null,707010,"laborantin-e 3","707010-laborantin-e 3",13,13]
[null,null,"FTI","Département de traduction",null,null,null,null,null,null,null,null,null,null,null,null,null,null,null,707012,"technicien-ne pour dentiste qualifié-e","707012-technicien-ne pour dentiste qualifié-e",9,9]
[null,null,"FTI","Département de traitement informatique multilingue",null,null,null,null,null,null,null,null,null,null,null,null,null,null,null,707014,"technicien-ne pour dentiste-maîtrise","707014-technicien-ne pour dentiste-maîtrise",11,13]
[null,null,"FTI","Département d'interprétation",null,null,null,null,null,null,null,null,null,null,null,null,null,null,null,711007,"assistant-e social-e","711007-assistant-e social-e",15,8]
[null,null,"GSEM","Services généraux GSEM",null,null,null,null,null,null,null,null,null,null,null,null,null,null,null,203001,"opérateur-trice de saisie de l'information 1","203001-opérateur-trice de saisie de l'information 1",6,1]
[null,null,"GSEM","Institute of economics",null,null,null,null,null,null,null,null,null,null,null,null,null,null,null,203002,"opérateur-trice de saisie de l'information 2","203002-opérateur-trice de saisie de l'information 2",7,1]
[null,null,"GSEM","Institute of management",null,null,null,null,null,null,null,null,null,null,null,null,null,null,null,505002,"magasinier-ère 2","505002-magasinier-ère 2",8,12]
[null,null,"GSEM","Institute of finance and accounting",null,null,null,null,null,null,null,null,null,null,null,null,null,null,null,505017,"magasinier-ère-comptable","505017-magasinier-ère-comptable",10,12]
[null,null,"GSEM","Research center for statistics",null,null,null,null,null,null,null,null,null,null,null,null,null,null,null,508006,"huissier-ère d'établissement d'enseignement","508006-huissier-ère d'établissement d'enseignement",9,11]
[null,null,"GSEM","Institute of information service science",null,null,null,null,null,null,null,null,null,null,null,null,null,null,null,508007,"huissier-hôtesse d'information","508007-huissier-hôtesse d'information",8,9]
[null,null,"GSEM","Laboratoire d'économie appliquée",null,null,null,null,null,null,null,null,null,null,null,null,null,null,null,508314,"huissier-ère chef-fe université","508314-huissier-ère chef-fe université",11,12]
[null,null,"GSEM","Center for executive education",null,null,null,null,null,null,null,null,null,null,null,null,null,null,null,619002,"employé-e de maison restaurant","619002-employé-e de maison restaurant",4,10]
[null,null,"GSEM","Recherche et enseignement GSEM",null,null,null,null,null,null,null,null,null,null,null,null,null,null,null,619012,"gouvernant-e de restaurant 1","619012-gouvernant-e de restaurant 1",7,11]
[null,null,"GSEM","Instit de recherche appliquée en économie et gestion",null,null,null,null,null,null,null,null,null,null,null,null,null,null,null,623015,"nettoyeur-euse","623015-nettoyeur-euse",4,7]
[null,null,"SDS","Service enseignement, recherche, administratif et technique (SdS)",null,null,null,null,null,null,null,null,null,null,null,null,null,null,null,624001,"gardien-ne de nuit","624001-gardien-ne de nuit",5,11]
[null,null,"SDS","Département de géographie et environnement (SdS)",null,null,null,null,null,null,null,null,null,null,null,null,null,null,null,624004,"concierge - gardien-ne","624004-concierge - gardien-ne",7,12]
[null,null,"SDS","Département de science politique et relations internationales (SdS)",null,null,null,null,null,null,null,null,null,null,null,null,null,null,null,631001,"aide de laboratoire 1","631001-aide de laboratoire 1",4,9]
[null,null,"SDS","Département de sociologie (SdS)",null,null,null,null,null,null,null,null,null,null,null,null,null,null,null,631002,"animalier-ère","631002-animalier-ère",5,6]
[null,null,"SDS","Institut pour la formation permanente en sciences sociales (SdS)",null,null,null,null,null,null,null,null,null,null,null,null,null,null,null,631008,"aide de laboratoire 2","631008-aide de laboratoire 2",6,9]
[null,null,"SDS","Incite - Institut d'études de la citoyenneté (SdS)",null,null,null,null,null,null,null,null,null,null,null,null,null,null,null,703015,"assistant-e dentaire","703015-assistant-e dentaire",9,11]
[null,null,"SDS","Institut des études genre (SdS)",null,null,null,null,null,null,null,null,null,null,null,null,null,null,null,507014,"bibliothécaire documentaliste archiviste (BDA)","507014-bibliothécaire documentaliste archiviste (BDA)",14,9]
[null,null,"SDS","Medi@LAB-Genève, Institut des Sciences de la Communication, des Médias et du Journalisme (SdS)",null,null,null,null,null,null,null,null,null,null,null,null,null,null,null,507015,"bibliothécaire documentaliste archiviste responsable","507015-bibliothécaire documentaliste archiviste responsable",15,13]
[null,null,"SDS","Institut d'histoire économique Paul Bairoch (SdS)",null,null,null,null,null,null,null,null,null,null,null,null,null,null,null,507016,"bibliothécaire documentaliste archiviste spécialiste","507016-bibliothécaire documentaliste archiviste spécialiste",15,10]
[null,null,"SDS","Institut de la Gouvernance de l'Environnement et du Développement Territorial (SdS)",null,null,null,null,null,null,null,null,null,null,null,null,null,null,null,507018,"coordinateur-trice en information documentaire","507018-coordinateur-trice en information documentaire",17,13]
[null,null,"SDS","Institut de recherches sociologiques (SdS)",null,null,null,null,null,null,null,null,null,null,null,null,null,null,null,507308,"archiviste de l'université","507308-archiviste de l'université",18,12]
[null,null,"SDS","Institut  de Démographie et de Socioéconomie (SdS)",null,null,null,null,null,null,null,null,null,null,null,null,null,null,null,4023,"chef-fe de secteur","4023-chef-fe de secteur",23,10]
[null,null,"SDS","Département d'Histoire, Économie et Société",null,null,null,null,null,null,null,null,null,null,null,null,null,null,null,5023,"chef-fe de groupe","5023-chef-fe de groupe",23,15]
[null,null,null,null,null,null,null,null,null,null,null,null,null,null,null,null,null,null,null,206019,"conseiller-ère en systèmes d'information et d'organisation","206019-conseiller-ère en systèmes d'information et d'organisation",23,12]
[null,null,null,null,null,null,null,null,null,null,null,null,null,null,null,null,null,null,null,206365,"responsable assurance qualité de l'université",{"$f":"T131&\"-\"&U131","v":"206365-responsable assurance qualité de l'université"},20,15]
[null,null,null,null,null,null,null,null,null,null,null,null,null,null,null,null,null,null,null,305002,"juriste 2","305002-juriste 2",20,8]
[null,null,null,null,null,null,null,null,null,null,null,null,null,null,null,null,null,null,null,305003,"juriste 3","305003-juriste 3",23,6]
[null,null,null,null,null,null,null,null,null,null,null,null,null,null,null,null,null,null,null,305348,"associé-e juridique aux transferts de technologie et de compétences - unitec","305348-associé-e juridique aux transferts de technologie et de compétences - unitec",21,10]
[null,null,null,null,null,null,null,null,null,null,null,null,null,null,null,null,null,null,null,501015,"assistant-e de direction","501015-assistant-e de direction",14,12]
[null,null,null,null,null,null,null,null,null,null,null,null,null,null,null,null,null,null,null,501535,"chargé-e des programmes d'intégration des nouveaux-elles étudiant-e-s - dase","501535-chargé-e des programmes d'intégration des nouveaux-elles étudiant-e-s - dase",18,12]
[null,null,null,null,null,null,null,null,null,null,null,null,null,null,null,null,null,null,null,502011,"comptable 2","502011-comptable 2",15,11]
[null,null,null,null,null,null,null,null,null,null,null,null,null,null,null,null,null,null,null,502012,"comptable 3","502012-comptable 3",18,13]
[null,null,null,null,null,null,null,null,null,null,null,null,null,null,null,null,null,null,null,502323,"adjoint-e au-à la chef-fe comptable de l'université","502323-adjoint-e au-à la chef-fe comptable de l'université",20,11]
[null,null,null,null,null,null,null,null,null,null,null,null,null,null,null,null,null,null,null,502360,"responsable centre comptable - uni","502360-responsable centre comptable - uni",16,10]
[null,null,null,null,null,null,null,null,null,null,null,null,null,null,null,null,null,null,null,502425,"responsable du service du budget - uni","502425-responsable du service du budget - uni",23,7]
[null,null,null,null,null,null,null,null,null,null,null,null,null,null,null,null,null,null,null,504363,"contrôleur-euse de gestion","504363-contrôleur-euse de gestion",20,11]
[null,null,null,null,null,null,null,null,null,null,null,null,null,null,null,null,null,null,null,505360,"superviseur-euse de la gestion des immobilisations - uni","505360-superviseur-euse de la gestion des immobilisations - uni",16,15]
[null,null,null,null,null,null,null,null,null,null,null,null,null,null,null,null,null,null,null,508016,"attaché-e de presse","508016-attaché-e de presse",18,6]
[null,null,null,null,null,null,null,null,null,null,null,null,null,null,null,null,null,null,null,508022,"collaborateur/trice socio-professionnel-le","508022-collaborateur/trice socio-professionnel-le",16,4]
[null,null,null,null,null,null,null,null,null,null,null,null,null,null,null,null,null,null,null,508036,"chargé-e de l'information et communication 2","508036-chargé-e de l'information et communication 2",20,9]
[null,null,null,null,null,null,null,null,null,null,null,null,null,null,null,null,null,null,null,508037,"chargé-e d'information et communication 1","508037-chargé-e d'information et communication 1",18,8]
[null,null,null,null,null,null,null,null,null,null,null,null,null,null,null,null,null,null,null,508039,"assistant-e en relations publiques et communication","508039-assistant-e en relations publiques et communication",14,3]
[null,null,null,null,null,null,null,null,null,null,null,null,null,null,null,null,null,null,null,508351,"rédacteur-trice en chef-fe - uni","508351-rédacteur-trice en chef-fe - uni",19,8]
[null,null,null,null,null,null,null,null,null,null,null,null,null,null,null,null,null,null,null,508356,"chargé-e d'information - ri","508356-chargé-e d'information - ri",19,11]
[null,null,null,null,null,null,null,null,null,null,null,null,null,null,null,null,null,null,null,509406,"responsable de secteur RH","509406-responsable de secteur RH",23,12]
[null,null,null,null,null,null,null,null,null,null,null,null,null,null,null,null,null,null,null,509500,"adjoint-e aux affaires académiques - rectorat","509500-adjoint-e aux affaires académiques - rectorat",20,9]
[null,null,null,null,null,null,null,null,null,null,null,null,null,null,null,null,null,null,null,509585,"responsable de la gestion des déchets - uni","509585-responsable de la gestion des déchets - uni",15,12]
[null,null,null,null,null,null,null,null,null,null,null,null,null,null,null,null,null,null,null,510005,"commis-e administratif-ive 5","510005-commis-e administratif-ive 5",14,10]
[null,null,null,null,null,null,null,null,null,null,null,null,null,null,null,null,null,null,null,510006,"commis-e administratif-ive 6","510006-commis-e administratif-ive 6",18,10]
[null,null,null,null,null,null,null,null,null,null,null,null,null,null,null,null,null,null,null,510007,"administrateur-trice école (section uni)","510007-administrateur-trice école (section uni)",18,10]
[null,null,null,null,null,null,null,null,null,null,null,null,null,null,null,null,null,null,null,510008,"administrateur-trice de faculté à l'Université 1","510008-administrateur-trice de faculté à l'Université 1",21,9]
[null,null,null,null,null,null,null,null,null,null,null,null,null,null,null,null,null,null,null,510009,"administrateur-trice de faculté à l'Université 2","510009-administrateur-trice de faculté à l'Université 2",23,11]
[null,null,null,null,null,null,null,null,null,null,null,null,null,null,null,null,null,null,null,510018,"assistant-e administratif-ive 2","510018-assistant-e administratif-ive 2",16,11]
[null,null,null,null,null,null,null,null,null,null,null,null,null,null,null,null,null,null,null,510019,"gestionnaire ressources humaines","510019-gestionnaire ressources humaines",13,8]
[null,null,null,null,null,null,null,null,null,null,null,null,null,null,null,null,null,null,null,510020,"adjoint-e administratif-ive","510020-adjoint-e administratif-ive",17,8]
[null,null,null,null,null,null,null,null,null,null,null,null,null,null,null,null,null,null,null,510026,"administrateur-trice d'école ou de section à l'Université 2","510026-administrateur-trice d'école ou de section à l'Université 2",20,10]
[null,null,null,null,null,null,null,null,null,null,null,null,null,null,null,null,null,null,null,510317,"adjoint-e administratif-ive 1","510317-adjoint-e administratif-ive 1",15,9]
[null,null,null,null,null,null,null,null,null,null,null,null,null,null,null,null,null,null,null,510496,"responsable du bureau des sports de l'université","510496-responsable du bureau des sports de l'université",21,12]
[null,null,null,null,null,null,null,null,null,null,null,null,null,null,null,null,null,null,null,510528,"adjoint-e de direction au centre universitaire d'informatique uni - dip","510528-adjoint-e de direction au centre universitaire d'informatique uni - dip",18,13]
[null,null,null,null,null,null,null,null,null,null,null,null,null,null,null,null,null,null,null,510538,"associé-e aux transferts de technologie et de compétences - unitec","510538-associé-e aux transferts de technologie et de compétences - unitec",21,9]
[null,null,null,null,null,null,null,null,null,null,null,null,null,null,null,null,null,null,null,712304,"chef-fe de projet DIFE","712304-chef-fe de projet DIFE",20,12]
[null,null,null,null,null,null,null,null,null,null,null,null,null,null,null,null,null,null,null,951004,"agent-e spécialisé-e","951004-agent-e spécialisé-e",19,15]
[null,null,null,null,null,null,null,null,null,null,null,null,null,null,null,null,null,null,null,951005,"chargé-e de mission","951005-chargé-e de mission",20,15]
[null,null,null,null,null,null,null,null,null,null,null,null,null,null,null,null,null,null,null,2026,"directeur-trice","2026-directeur-trice",26,11]
[null,null,null,null,null,null,null,null,null,null,null,null,null,null,null,null,null,null,null,3025,"chef-fe de service","3025-chef-fe de service",25,13]
[null,null,null,null,null,null,null,null,null,null,null,null,null,null,null,null,null,null,null,105406,"directeur-trice de la division des bâtiments et de la logistique UNI","105406-directeur-trice de la division des bâtiments et de la logistique UNI",26,12]
[null,null,null,null,null,null,null,null,null,null,null,null,null,null,null,null,null,null,null,201315,"responsable service - division informatique UNI","201315-responsable service - division informatique UNI",25,13]
[null,null,null,null,null,null,null,null,null,null,null,null,null,null,null,null,null,null,null,201330,"directeur-trice des technologies de l'information et de la communication - uni","201330-directeur-trice des technologies de l'information et de la communication - uni",27,11]
[null,null,null,null,null,null,null,null,null,null,null,null,null,null,null,null,null,null,null,201350,"responsable groupe ntic - uni","201350-responsable groupe ntic - uni",25,15]
[null,null,null,null,null,null,null,null,null,null,null,null,null,null,null,null,null,null,null,202344,"responsable groupe développement et maintenance informatique uni","202344-responsable groupe développement et maintenance informatique uni",25,11]
[null,null,null,null,null,null,null,null,null,null,null,null,null,null,null,null,null,null,null,305335,"directeur-trice des affaires juridiques - uni","305335-directeur-trice des affaires juridiques - uni",27,7]
[null,null,null,null,null,null,null,null,null,null,null,null,null,null,null,null,null,null,null,406344,"directeur-trice adjoint-e IUFE","406344-directeur-trice adjoint-e IUFE",26,13]
[null,null,null,null,null,null,null,null,null,null,null,null,null,null,null,null,null,null,null,501435,"secrétaire général-e - uni","501435-secrétaire général-e - uni",29,13]
[null,null,null,null,null,null,null,null,null,null,null,null,null,null,null,null,null,null,null,502400,"directeur-trice financier-ère Université","502400-directeur-trice financier-ère Université",28,13]
[null,null,null,null,null,null,null,null,null,null,null,null,null,null,null,null,null,null,null,507327,"directeur-trice information scientifique - uni","507327-directeur-trice information scientifique - uni",26,13]
[null,null,null,null,null,null,null,null,null,null,null,null,null,null,null,null,null,null,null,509501,"directeur-trice ressources humaines de l'Université","509501-directeur-trice ressources humaines de l'Université",28,14]
[null,null,null,null,null,null,null,null,null,null,null,null,null,null,null,null,null,null,null,509506,"directeur-trice de la division des étudiant-e-s et de la formation","509506-directeur-trice de la division des étudiant-e-s et de la formation",28,9]
[null,null,null,null,null,null,null,null,null,null,null,null,null,null,null,null,null,null,null,509597,"adjoint-e responsable du secteur recherche rectorat unige","509597-adjoint-e responsable du secteur recherche rectorat unige",24,14]
[null,null,null,null,null,null,null,null,null,null,null,null,null,null,null,null,null,null,null,509623,"Directeur-trice du secteur recherche UNI","509623-Directeur-trice du secteur recherche UNI",26,7]
[null,null,null,null,null,null,null,null,null,null,null,null,null,null,null,null,null,null,null,510027,"administrateur-trice de faculté à l'Université 3","510027-administrateur-trice de faculté à l'Université 3",24,13]
[null,null,null,null,null,null,null,null,null,null,null,null,null,null,null,null,null,null,null,510424,"directeur-trice Centre universitaire compétences formation continue et à distance","510424-directeur-trice Centre universitaire compétences formation continue et à distance",26,12]
[null,null,null,null,null,null,null,null,null,null,null,null,null,null,null,null,null,null,null,510537,"responsable de l'office de transferts de technologie et de compétences-unitec","510537-responsable de l'office de transferts de technologie et de compétences-unitec",26,13]
[null,null,null,null,null,null,null,null,null,null,null,null,null,null,null,null,null,null,null,501005,"secrétaire 1","501005-secrétaire 1",9,10]
[null,null,null,null,null,null,null,null,null,null,null,null,null,null,null,null,null,null,null,501006,"secrétaire 2","501006-secrétaire 2",10,12]
[null,null,null,null,null,null,null,null,null,null,null,null,null,null,null,null,null,null,null,501007,"secrétaire - coordinateur-trice","501007-secrétaire - coordinateur-trice",10,9]
[null,null,null,null,null,null,null,null,null,null,null,null,null,null,null,null,null,null,null,501008,"secrétaire - documentaliste","501008-secrétaire - documentaliste",11,11]
[null,null,null,null,null,null,null,null,null,null,null,null,null,null,null,null,null,null,null,501014,"secrétaire 3","501014-secrétaire 3",12,12]
[null,null,null,null,null,null,null,null,null,null,null,null,null,null,null,null,null,null,null,502008,"teneur-euse de comptes 2","502008-teneur-euse de comptes 2",11,8]
[null,null,null,null,null,null,null,null,null,null,null,null,null,null,null,null,null,null,null,502009,"secrétaire-comptable",{"$f":"T195&\"-\"&U195","v":"502009-secrétaire-comptable"},13,12]
[null,null,null,null,null,null,null,null,null,null,null,null,null,null,null,null,null,null,null,502334,"comptable du département d'astronomie","502334-comptable du département d'astronomie",13,13]
[null,null,null,null,null,null,null,null,null,null,null,null,null,null,null,null,null,null,null,503005,"caissier - comptable 1","503005-caissier - comptable 1",12,10]
[null,null,null,null,null,null,null,null,null,null,null,null,null,null,null,null,null,null,null,506005,"enquêteur-trice 2","506005-enquêteur-trice 2",11,9]
[null,null,null,null,null,null,null,null,null,null,null,null,null,null,null,null,null,null,null,507013,"bibliothécaire documentaliste archiviste assistant-e","507013-bibliothécaire documentaliste archiviste assistant-e",9,7]
[null,null,null,null,null,null,null,null,null,null,null,null,null,null,null,null,null,null,null,508002,"téléphoniste-standardiste","508002-téléphoniste-standardiste",6,9]
[null,null,null,null,null,null,null,null,null,null,null,null,null,null,null,null,null,null,null,508011,"chef-fe téléphoniste","508011-chef-fe téléphoniste",10,14]
[null,null,null,null,null,null,null,null,null,null,null,null,null,null,null,null,null,null,null,508026,"réceptionniste-médical-e","508026-réceptionniste-médical-e",9,11]
[null,null,null,null,null,null,null,null,null,null,null,null,null,null,null,null,null,null,null,509007,"correcteur-trice","509007-correcteur-trice",14,6]
[null,null,null,null,null,null,null,null,null,null,null,null,null,null,null,null,null,null,null,510001,"commis-e administratif-ive 1","510001-commis-e administratif-ive 1",5,6]
[null,null,null,null,null,null,null,null,null,null,null,null,null,null,null,null,null,null,null,510002,"commis-e administratif-ive 2","510002-commis-e administratif-ive 2",6,5]
[null,null,null,null,null,null,null,null,null,null,null,null,null,null,null,null,null,null,null,510003,"commis-e administratif-ive 3","510003-commis-e administratif-ive 3",9,5]
[null,null,null,null,null,null,null,null,null,null,null,null,null,null,null,null,null,null,null,510004,"commis-e administratif-ive 4","510004-commis-e administratif-ive 4",11,10]
[null,null,null,null,null,null,null,null,null,null,null,null,null,null,null,null,null,null,null,510021,"assistant-e administratif-ive 1","510021-assistant-e administratif-ive 1",12,11]

{"sheet":"EchelleTraitement","index":2,"n_rows":691,"n_cols":4,"rows_kept":691,"cut":false,"hidden":true,"merged":[]}
["ID","Classe","Niveau","Annuel"]
["40",4,0,54194]
["41",4,1,54796]
["42",4,2,55398]
["43",4,3,56000]
["44",4,4,57595]
["45",4,5,59190]
["46",4,6,60785]
["47",4,7,62380]
["48",4,8,63975]
["49",4,9,65570]
["410",4,10,67165]
["411",4,11,68760]
["412",4,12,69362]
["413",4,13,69964]
["414",4,14,70566]
["415",4,15,71168]
["416",4,16,71770]
["417",4,17,72372]
["418",4,18,72974]
["419",4,19,73576]
["420",4,20,74178]
["421",4,21,74780]
["422",4,22,75382]
["50",5,0,56633]
["51",5,1,57234]
["52",5,2,57835]
["53",5,3,58436]
["54",5,4,60027]
["55",5,5,61618]
["56",5,6,63209]
["57",5,7,64800]
["58",5,8,66391]
["59",5,9,67982]
["510",5,10,69573]
["511",5,11,71164]
["512",5,12,71765]
["513",5,13,72366]
["514",5,14,72967]
["515",5,15,73568]
["516",5,16,74169]
["517",5,17,74770]
["518",5,18,75371]
["519",5,19,75972]
["520",5,20,76573]
["521",5,21,77174]
["522",5,22,77775]
["60",6,0,59182]
["61",6,1,59786]
["62",6,2,60390]
["63",6,3,60994]
["64",6,4,62594]
["65",6,5,64194]
["66",6,6,65794]
["67",6,7,67394]
["68",6,8,68994]
["69",6,9,70594]
["610",6,10,72194]
["611",6,11,73794]
["612",6,12,74398]
["613",6,13,75002]
["614",6,14,75606]
["615",6,15,76210]
["616",6,16,76814]
["617",6,17,77418]
["618",6,18,78022]
["619",6,19,78626]
["620",6,20,79230]
["621",6,21,79834]
["622",6,22,80438]
["70",7,0,61846]
["71",7,1,62477]
["72",7,2,63108]
["73",7,3,63739]
["74",7,4,65411]
["75",7,5,67083]
["76",7,6,68755]
["77",7,7,70427]
["78",7,8,72099]
["79",7,9,73771]
["710",7,10,75443]
["711",7,11,77115]
["712",7,12,77746]
["713",7,13,78377]
["714",7,14,79008]
["715",7,15,79639]
["716",7,16,80270]
["717",7,17,80901]
["718",7,18,81532]
["719",7,19,82163]
["720",7,20,82794]
["721",7,21,83425]
["722",7,22,84056]
["80",8,0,64630]
["81",8,1,65290]
["82",8,2,65950]
["83",8,3,66610]
["84",8,4,68357]
["85",8,5,70104]
["86",8,6,71851]
["87",8,7,73598]
["88",8,8,75345]
["89",8,9,77092]
["810",8,10,78839]
["811",8,11,80586]
["812",8,12,81246]
["813",8,13,81906]
["814",8,14,82566]
["815",8,15,83226]
["816",8,16,83886]
["817",8,17,84546]
["818",8,18,85206]
["819",8,19,85866]
["820",8,20,86526]
["821",8,21,87186]
["822",8,22,87846]
["90",9,0,67539]
["91",9,1,68215]
["92",9,2,68891]
["93",9,3,69567]
["94",9,4,71357]
["95",9,5,73147]
["96",9,6,74937]
["97",9,7,76727]
["98",9,8,78517]
["99",9,9,80307]
["910",9,10,82097]
["911",9,11,83887]
["912",9,12,84563]
["913",9,13,85239]
["914",9,14,85915]
["915",9,15,86591]
["916",9,16,87267]
["917",9,17,87943]
["918",9,18,88619]
["919",9,19,89295]
["920",9,20,89971]
["921",9,21,90647]
["922",9,22,91323]
["100",10,0,70579]
["101",10,1,71285]
["102",10,2,71991]
["103",10,3,72697]
["104",10,4,74568]
["105",10,5,76439]
["106",10,6,78310]
["107",10,7,80181]
["108",10,8,82052]
["109",10,9,83923]
["1010",10,10,85794]
["1011",10,11,87665]
["1012",10,12,88371]
["1013",10,13,89077]
["1014",10,14,89783]
["1015",10,15,90489]
["1016",10,16,91195]
["1017",10,17,91901]
["1018",10,18,92607]
["1019",10,19,93313]
["1020",10,20,94019]
["1021",10,21,94725]
["1022",10,22,95431]
["110",11,0,73756]
["111",11,1,74494]
["112",11,2,75232]
["113",11,3,75970]
["114",11,4,77925]
["115",11,5,79880]
["116",11,6,81835]
["117",11,7,83790]
["118",11,8,85745]
["119",11,9,87700]
["1110",11,10,89655]
["1111",11,11,91610]
["1112",11,12,92348]
["1113",11,13,93086]
["1114",11,14,93824]
["1115",11,15,94562]
["1116",11,16,95300]
["1117",11,17,96038]
["1118",11,18,96776]
["1119",11,19,97514]
["1120",11,20,98252]
["1121",11,21,98990]
["1122",11,22,99728]
["120",12,0,77076]
["121",12,1,77847]
["122",12,2,78618]
["123",12,3,79389]
["124",12,4,81432]
["125",12,5,83475]
["126",12,6,85518]
["127",12,7,87561]
["128",12,8,89604]
["129",12,9,91647]
["1210",12,10,93690]
["1211",12,11,95733]
["1212",12,12,96504]
["1213",12,13,97275]
["1214",12,14,98046]
["1215",12,15,98817]
["1216",12,16,99588]
["1217",12,17,100359]
["1218",12,18,101130]
["1219",12,19,101901]
["1220",12,20,102672]
["1221",12,21,103443]
["1222",12,22,104214]
["130",13,0,80545]
["131",13,1,81351]
["132",13,2,82157]
["133",13,3,82963]
["134",13,4,85098]
["135",13,5,87233]
["136",13,6,89368]
["137",13,7,91503]
["138",13,8,93638]
["139",13,9,95773]
["1310",13,10,97908]
["1311",13,11,100043]
["1312",13,12,100849]
["1313",13,13,101655]
["1314",13,14,102461]
["1315",13,15,103267]
["1316",13,16,104073]
["1317",13,17,104879]
["1318",13,18,105685]
["1319",13,19,106491]
["1320",13,20,107297]
["1321",13,21,108103]
["1322",13,22,108909]
["140",14,0,84170]
["141",14,1,85012]
["142",14,2,85854]
["143",14,3,86696]
["144",14,4,88927]
["145",14,5,91158]
["146",14,6,93389]
["147",14,7,95620]
["148",14,8,97851]
["149",14,9,100082]
["1410",14,10,102313]
["1411",14,11,104544]
["1412",14,12,105386]
["1413",14,13,106228]
["1414",14,14,107070]
["1415",14,15,107912]
["1416",14,16,108754]
["1417",14,17,109596]
["1418",14,18,110438]
["1419",14,19,111280]
["1420",14,20,112122]
["1421",14,21,112964]
["1422",14,22,113806]
["150",15,0,87958]
["151",15,1,88838]
["152",15,2,89718]
["153",15,3,90598]
["154",15,4,92929]
["155",15,5,95260]
["156",15,6,97591]
["157",15,7,99922]
["158",15,8,102253]
["159",15,9,104584]
["1510",15,10,106915]
["1511",15,11,109246]
["1512",15,12,110126]
["1513",15,13,111006]
["1514",15,14,111886]
["1515",15,15,112766]
["1516",15,16,113646]
["1517",15,17,114526]
["1518",15,18,115406]
["1519",15,19,116286]
["1520",15,20,117166]
["1521",15,21,118046]
["1522",15,22,118926]
["160",16,0,91917]
["161",16,1,92837]
["162",16,2,93757]
["163",16,3,94677]
["164",16,4,97113]
["165",16,5,99549]
["166",16,6,101985]
["167",16,7,104421]
["168",16,8,106857]
["169",16,9,109293]
["1610",16,10,111729]
["1611",16,11,114165]
["1612",16,12,115085]
["1613",16,13,116005]
["1614",16,14,116925]
["1615",16,15,117845]
["1616",16,16,118765]
["1617",16,17,119685]
["1618",16,18,120605]
["1619",16,19,121525]
["1620",16,20,122445]
["1621",16,21,123365]
["1622",16,22,124285]
["170",17,0,96054]
["171",17,1,97015]
["172",17,2,97976]
["173",17,3,98937]
["174",17,4,101483]
["175",17,5,104029]
["176",17,6,106575]
["177",17,7,109121]
["178",17,8,111667]
["179",17,9,114213]
["1710",17,10,116759]
["1711",17,11,119305]
["1712",17,12,120266]
["1713",17,13,121227]
["1714",17,14,122188]
["1715",17,15,123149]
["1716",17,16,124110]
["1717",17,17,125071]
["1718",17,18,126032]
["1719",17,19,126993]
["1720",17,20,127954]
["1721",17,21,128915]
["1722",17,22,129876]
["180",18,0,100377]
["181",18,1,101381]
["182",18,2,102385]
["183",18,3,103389]
["184",18,4,106049]
["185",18,5,108709]
["186",18,6,111369]
["187",18,7,114029]
["188",18,8,116689]
["189",18,9,119349]
["1810",18,10,122009]
["1811",18,11,124669]
["1812",18,12,125673]
["1813",18,13,126677]
["1814",18,14,127681]
["1815",18,15,128685]
["1816",18,16,129689]
["1817",18,17,130693]
["1818",18,18,131697]
["1819",18,19,132701]
["1820",18,20,133705]
["1821",18,21,134709]
["1822",18,22,135713]
["190",19,0,104894]
["191",19,1,105943]
["192",19,2,106992]
["193",19,3,108041]
["194",19,4,110821]
["195",19,5,113601]
["196",19,6,116381]
["197",19,7,119161]
["198",19,8,121941]
["199",19,9,124721]
["1910",19,10,127501]
["1911",19,11,130281]
["1912",19,12,131330]
["1913",19,13,132379]
["1914",19,14,133428]
["1915",19,15,134477]
["1916",19,16,135526]
["1917",19,17,136575]
["1918",19,18,137624]
["1919",19,19,138673]
["1920",19,20,139722]
["1921",19,21,140771]
["1922",19,22,141820]
["200",20,0,109615]
["201",20,1,110712]
["202",20,2,111809]
["203",20,3,112906]
["204",20,4,115811]
["205",20,5,118716]
["206",20,6,121621]
["207",20,7,124526]
["208",20,8,127431]
["209",20,9,130336]
["2010",20,10,133241]
["2011",20,11,136146]
["2012",20,12,137243]
["2013",20,13,138340]
["2014",20,14,139437]
["2015",20,15,140534]
["2016",20,16,141631]
["2017",20,17,142728]
["2018",20,18,143825]
["2019",20,19,144922]
["2020",20,20,146019]
["2021",20,21,147116]
["2022",20,22,148213]
["210",21,0,114548]
["211",21,1,115694]
["212",21,2,116840]
["213",21,3,117986]
["214",21,4,121022]
["215",21,5,124058]
["216",21,6,127094]
["217",21,7,130130]
["218",21,8,133166]
["219",21,9,136202]
["2110",21,10,139238]
["2111",21,11,142274]
["2112",21,12,143420]
["2113",21,13,144566]
["2114",21,14,145712]
["2115",21,15,146858]
["2116",21,16,148004]
["2117",21,17,149150]
["2118",21,18,150296]
["2119",21,19,151442]
["2120",21,20,152588]
["2121",21,21,153734]
["2122",21,22,154880]
["220",22,0,119703]
["221",22,1,120901]
["222",22,2,122099]
["223",22,3,123297]
["224",22,4,126470]
["225",22,5,129643]
["226",22,6,132816]
["227",22,7,135989]
["228",22,8,139162]
["229",22,9,142335]
["2210",22,10,145508]
["2211",22,11,148681]
["2212",22,12,149879]
["2213",22,13,151077]
["2214",22,14,152275]
["2215",22,15,153473]
["2216",22,16,154671]
["2217",22,17,155869]
["2218",22,18,157067]
["2219",22,19,158265]
["2220",22,20,159463]
["2221",22,21,160661]
["2222",22,22,161859]
["230",23,0,125090]
["231",23,1,126341]
["232",23,2,127592]
["233",23,3,128843]
["234",23,4,132158]
["235",23,5,135473]
["236",23,6,138788]
["237",23,7,142103]
["238",23,8,145418]
["239",23,9,148733]
["2310",23,10,152048]
["2311",23,11,155363]
["2312",23,12,156614]
["2313",23,13,157865]
["2314",23,14,159116]
["2315",23,15,160367]
["2316",23,16,161618]
["2317",23,17,162869]
["2318",23,18,164120]
["2319",23,19,165371]
["2320",23,20,166622]
["2321",23,21,167873]
["2322",23,22,169124]
["240",24,0,130720]
["241",24,1,132028]
["242",24,2,133336]
["243",24,3,134644]
["244",24,4,138109]
["245",24,5,141574]
["246",24,6,145039]
["247",24,7,148504]
["248",24,8,151969]
["249",24,9,155434]
["2410",24,10,158899]
["2411",24,11,162364]
["2412",24,12,163672]
["2413",24,13,164980]
["2414",24,14,166288]
["2415",24,15,167596]
["2416",24,16,168904]
["2417",24,17,170212]
["2418",24,18,171520]
["2419",24,19,172828]
["2420",24,20,174136]
["2421",24,21,175444]
["2422",24,22,176752]
["250",25,0,136603]
["251",25,1,137970]
["252",25,2,139337]
["253",25,3,140704]
["254",25,4,144324]
["255",25,5,147944]
["256",25,6,151564]
["257",25,7,155184]
["258",25,8,158804]
["259",25,9,162424]
["2510",25,10,166044]
["2511",25,11,169664]
["2512",25,12,171031]
["2513",25,13,172398]
["2514",25,14,173765]
["2515",25,15,175132]
["2516",25,16,176499]
["2517",25,17,177866]
["2518",25,18,179233]
["2519",25,19,180600]
["2520",25,20,181967]
["2521",25,21,183334]
["2522",25,22,184701]
["260",26,0,142751]
["261",26,1,144179]
["262",26,2,145607]
["263",26,3,147035]
["264",26,4,150818]
["265",26,5,154601]
["266",26,6,158384]
["267",26,7,162167]
["268",26,8,165950]
["269",26,9,169733]
["2610",26,10,173516]
["2611",26,11,177299]
["2612",26,12,178727]
["2613",26,13,180155]
["2614",26,14,181583]
["2615",26,15,183011]
["2616",26,16,184439]
["2617",26,17,185867]
["2618",26,18,187295]
["2619",26,19,188723]
["2620",26,20,190151]
["2621",26,21,191579]
["2622",26,22,193007]
["270",27,0,149175]
["271",27,1,150667]
["272",27,2,152159]
["273",27,3,153651]
["274",27,4,157605]
["275",27,5,161559]
["276",27,6,165513]
["277",27,7,169467]
["278",27,8,173421]
["279",27,9,177375]
["2710",27,10,181329]
["2711",27,11,185283]
["2712",27,12,186775]
["2713",27,13,188267]
["2714",27,14,189759]
["2715",27,15,191251]
["2716",27,16,192743]
["2717",27,17,194235]
["2718",27,18,195727]
["2719",27,19,197219]
["2720",27,20,198711]
["2721",27,21,200203]
["2722",27,22,201695]
["280",28,0,155888]
["281",28,1,157447]
["282",28,2,159006]
["283",28,3,160565]
["284",28,4,164697]
["285",28,5,168829]
["286",28,6,172961]
["287",28,7,177093]
["288",28,8,181225]
["289",28,9,185357]
["2810",28,10,189489]
["2811",28,11,193621]
["2812",28,12,195180]
["2813",28,13,196739]
["2814",28,14,198298]
["2815",28,15,199857]
["2816",28,16,201416]
["2817",28,17,202975]
["2818",28,18,204534]
["2819",28,19,206093]
["2820",28,20,207652]
["2821",28,21,209211]
["2822",28,22,210770]
["290",29,0,162903]
["291",29,1,164533]
["292",29,2,166163]
["293",29,3,167793]
["294",29,4,172110]
["295",29,5,176427]
["296",29,6,180744]
["297",29,7,185061]
["298",29,8,189378]
["299",29,9,193695]
["2910",29,10,198012]
["2911",29,11,202329]
["2912",29,12,203959]
["2913",29,13,205589]
["2914",29,14,207219]
["2915",29,15,208849]
["2916",29,16,210479]
["2917",29,17,212109]
["2918",29,18,213739]
["2919",29,19,215369]
["2920",29,20,216999]
["2921",29,21,218629]
["2922",29,22,220259]
["300",30,0,170234]
["301",30,1,171937]
["302",30,2,173640]
["303",30,3,175343]
["304",30,4,179855]
["305",30,5,184367]
["306",30,6,188879]
["307",30,7,193391]
["308",30,8,197903]
["309",30,9,202415]
["3010",30,10,206927]
["3011",30,11,211439]
["3012",30,12,213142]
["3013",30,13,214845]
["3014",30,14,216548]
["3015",30,15,218251]
["3016",30,16,219954]
["3017",30,17,221657]
["3018",30,18,223360]
["3019",30,19,225063]
["3020",30,20,226766]
["3021",30,21,228469]
["3022",30,22,230172]
["310",31,0,177895]
["311",31,1,179674]
["312",31,2,181453]
["313",31,3,183232]
["314",31,4,187947]
["315",31,5,192662]
["316",31,6,197377]
["317",31,7,202092]
["318",31,8,206807]
["319",31,9,211522]
["3110",31,10,216237]
["3111",31,11,220952]
["3112",31,12,222731]
["3113",31,13,224510]
["3114",31,14,226289]
["3115",31,15,228068]
["3116",31,16,229847]
["3117",31,17,231626]
["3118",31,18,233405]
["3119",31,19,235184]
["3120",31,20,236963]
["3121",31,21,238742]
["3122",31,22,240521]
["320",32,0,185901]
["321",32,1,187761]
["322",32,2,189621]
["323",32,3,191481]
["324",32,4,196408]
["325",32,5,201335]
["326",32,6,206262]
["327",32,7,211189]
["328",32,8,216116]
["329",32,9,221043]
["3210",32,10,225970]
["3211",32,11,230897]
["3212",32,12,232757]
["3213",32,13,234617]
["3214",32,14,236477]
["3215",32,15,238337]
["3216",32,16,240197]
["3217",32,17,242057]
["3218",32,18,243917]
["3219",32,19,245777]
["3220",32,20,247637]
["3221",32,21,249497]
["3222",32,22,251357]
["330",33,0,194267]
["331",33,1,196210]
["332",33,2,198153]
["333",33,3,200096]
["334",33,4,205245]
["335",33,5,210394]
["336",33,6,215543]
["337",33,7,220692]
["338",33,8,225841]
["339",33,9,230990]
["3310",33,10,236139]
["3311",33,11,241288]
["3312",33,12,243231]
["3313",33,13,245174]
["3314",33,14,247117]
["3315",33,15,249060]
["3316",33,16,251003]
["3317",33,17,252946]
["3318",33,18,254889]
["3319",33,19,256832]
["3320",33,20,258775]
["3321",33,21,260718]
["3322",33,22,262661]